Workbook

Sheet 1. Instructions
A2: Version 1.33 | B2: SOMAH WORKBOOK INSTRUCTIONS
A3: STEP 1: | B3: COMPLETE PROPERTY CHARACTERISTICS PAGE
B4: Please fill out the Property Characteristics page (tab). This page can be completed by the owner/contractor at, or prior to, reservation to estimate the maximum solar system offset size, but this is optional. However, this section must be filled out by an Energy Consultant by no later than 60 days after reservation approval at the Energy Efficiency Compliance (EEC) Milestone. The Property Characteristics table is collecting general information about the property to identify potential energy upgrade opportunities and assist in recommendations for complimentary energy programs. Items that do not require entry will be greyed-out as applicable. Dropdown menus are available for most line items. Help bubbles are available for most fields.
A5: STEP 2: | B5: REVIEW ENERGY EFFICIENCY OPPORTUNITIES ON SUMMARY PAGE
B6: The efficiency opportunities on the Summary page will be auto-populated by building information in the Property Characteristics page. Energy Efficiency opportunities that are included in the maximum PV offsets, relative to historic consumption, are identified, including assumed existing condition and assumed upgrade condition.
A7: STEP 3: | B7: SELECT ELECTRIC LOAD OPPORTUNITIES ON OPPORTUNITIES PAGE
B8: Use dropdown menus to select new electric load addition opportunities to be offset by the PV system. If the existing equipment or appliance is already using electric power, then the opportunity will populate as "Not Applicable". Users have the option of submitting custom load addition calcs, but must provide supporting justification documentation at the EEC Milestone stage.
A9: STEP 4: | B9: ENTER PAST 12 MONTH KWH USE ON OPPORTUNITIES PAGE (ENERGY BASELINE)
B10: Common Area: Enter the historic 12 month annualized electricity consumption for all common areas that will be receiving allocations from the SOMAH incentivized PV system. This value can be provided to the participant via PowerClerk. Apartments: Enter the historic 12 month annualized electricity consumption aggregated for all apartments that will be receiving allocations from the SOMAH incentivized PV system. This value can be provided to the participant via PowerClerk.
A11: STEP 5: | B11: REVIEW SOLAR SIZING SUMMARY SECTION ON OPPORTUNITIES PAGE
B12: This section will identify the maximum solar PV offset for the sum of all common area meters and all apartment meters, and the estimated maximum PV size (CEC AC), which would be eligible for SOMAH rebates. The tool will review the total historic consumption at the property, apply the identified energy efficiency opportunities, and the load addition opportunities in order to determine an overall rebate size cap. Additionally, the tool will provide recommended VNEM proportionality for the sum of common area meters and the sum of apartment meters based on the tool's calculations. Please note that at least 51% of total PV generation must be allocated to apartment meters per SOMAH program requirements.
A13: STEP 6: | B13: UPLOAD EXCEL AND OWNER SIGNATURE TO POWERCLERK
B14: After completing the tool, the excel file should be uploaded to PowerClerk on or before the Energy Efficiency Compliance Milestone. Additionally, the Owner Signature page should be converted to a PDF, signed, and uploaded to PowerClerk.
A15: HELPDESK | B15: QUESTIONS AND FEEDBACK
B16: If you have any questions or encounter any errors while using the solar sizing tool, please email contact@calsomah.org.

Sheet 2. Property Characteristics
B2: STEP 1: COMPLETE PROPERTY CHARACTERISTICS FORM
B3: PROJECT SITE INFORMATION | I3: INSTRUCTIONS
B4: Powerclerk Application Number | C4: Application Number | I4: 0 | J4: Input Fields
B5: Property Name | C5: Property Name | I5: 0 | J5: Auto-populated Fields
B6: Property Address | C6: Property Address | J6: Instructions
B7: Property City | C7: Property City
B8: Property Zip Code | C8: Property Zip Code
B9: Property Climate Zone | C9: =_xlfn.IFNA(VLOOKUP(C8,'Updated Zip Code List'!A1:B2677,2,FALSE),"Enter Zip Code Above") -> Enter Zip Code Above
B10: Workbook Author Name
B11: Workbook Author Title | E11: If other please specify
B12: Credential (If Energy Consultant)
B13: Credential Number
B14: Property Owner's Organization | C14: Property Owner's Organization
B15: Property Primary Contact Name (Signatory) | C15: Contact Name
B16: Primary Contact Phone | C16: Contact Phone
B17: Primary Contact Email | C17: Contact Email
B18: Electric Utility | C18: SCE
B19: Gas Utility
B20: BASIC PROPERTY INFORMATION
B21: Year Built
B22: Number of Apartments
B23: Number of Buildings
B24: Number of Floors (If various, enter most common)
B25: Occupancy Type | E25: If other please specify
B26: Total Number of Bedrooms
B27: Gross Building Floor Area (If property has multiple buildings, enter total area for all)
B28: BUILDING ENVELOPE INFORMATION
B29: Wall Construction Type | E29: If other please specify
B30: Is the Wall Insulated? | E30: If other please specify
B31: Roof Construction Method | E31: If other please specify
B32: Roof Insulation R Value | E32: If other please specify
B33: Window Frame Type | E33: If other please specify
B34: Glazing Type (If multiple, select most common) | E34: If other please specify
B35: DOMESTIC HOT WATER, SPACE HEATING, AND AIR CONDITIONING INFORMATION FOR TENANT UNITS
B36: Domestic Hot Water (DHW) Type | E36: Space Heating Type
B37: DHW Fuel Type | E37: Space Heating Fuel Type
B38: DHW System Type | E38: Space Heating System Type
B39: Have Space Cooling System ? | C39: No | E39: NOTES
B40: Space Cooling Type
B41: Space Cooling System Type
B42: =IF(OR(C41=Values!L14,C41=Values!L15,C41=Values!L17,C41=Values!L18),"Majority Existing System SEER Value less or equal to 10?","Not Applicable") -> Not Applicable
B43: OTHER INFORMATION
B44: Quantity of Pool and SPAs (Select 0, if no pool) | E44: Existing High Rise Water Pressure Boosting System?
B45: Quantity of Existing Variable Speed Pumps | E45: Are Existing Booster(s) Variable Speed?
B46: Pool Type | E46: Laundry
B47: Spa Type | E47: Dryer Type
B48: Estimated Pool Surface Area (sqft) | E48: Are the majority of refrigerators manufactured before 2000?
B49: Estimated Spa Surface Area (sqft) | E49: Apartment Stove/Oven Type
B50: COMMON AREA LIGHTING INFORMATION
B51: Common Area Lighting | E51: No | F51: All Common Area Lighting Upgraded to LED?
E52: No | F52: Have 24 Hour Fixtures in Corridor/Stairwell/Parking?
E53: No | F53: Have Night Time Fixtures (12 Hour) ?
B54: 24 HOUR FIXTURES (NON-LED ONLY) | C54: LIGHTING TABLE | E54: 12 HOUR FIXTURES (NON-LED ONLY) | F54: LIGHTING TABLE
B55: Type | C55: Fixture Wattage | D55: Fixture Quantity | E55: Type | F55: Fixture Wattage | G55: Fixture Quantity
B78: 24-HR LIGHTING SUMMARY | C78: Average Wattage | D78: Total Qty | E78: 12-HR LIGHTING SUMMARY | F78: Avg Wattage | G78: Total Qty
B79: Incandescent | C79: =IFERROR((SUMPRODUCT(--(B56:B76=B79),'Efficiency Opportunities'!B24:B44,D56:D76))/D79,0) -> 0 | D79: =SUMIF(B56:B76,B79,D56:D76) -> 0 | E79: Incandescent | F79: =IFERROR((SUMPRODUCT(--(E56:E76=E79),'Efficiency Opportunities'!F24:F44,G56:G76))/G79,0) -> 0 | G79: =SUMIF(E56:E76,E79,G56:G76) -> 0
B80: CFL | C80: =IFERROR((SUMPRODUCT(--(B56:B76=B80),'Efficiency Opportunities'!B24:B44,D56:D76))/D80,0) -> 0 | D80: =SUMIF(B56:B76,B80,D56:D76) -> 0 | E80: CFL | F80: =IFERROR((SUMPRODUCT(--(E56:E76=E80),'Efficiency Opportunities'!F24:F44,G56:G76))/G80,0) -> 0 | G80: =SUMIF(E56:E76,E80,G56:G76) -> 0
B81: Linear Fluorescent | C81: =IFERROR((SUMPRODUCT(--(B56:B76=B81),'Efficiency Opportunities'!B24:B44,D56:D76))/D81,0) -> 0 | D81: =SUMIF(B56:B76,B81,D56:D76) -> 0 | E81: Linear Fluorescent | F81: =IFERROR((SUMPRODUCT(--(E56:E76=E81),'Efficiency Opportunities'!F24:F44,G56:G76))/G81,0) -> 0 | G81: =SUMIF(E56:E76,E81,G56:G76) -> 0
B82: High Intensity Discharge | C82: =IFERROR((SUMPRODUCT(--(B56:B76=B82),'Efficiency Opportunities'!B24:B44,D56:D76))/D82,0) -> 0 | D82: =SUMIF(B56:B76,B82,D56:D76) -> 0 | E82: High Intensity Discharge | F82: =IFERROR((SUMPRODUCT(--(E56:E76=E82),'Efficiency Opportunities'!F24:F44,G56:G76))/G82,0) -> 0 | G82: =SUMIF(E56:E76,E82,G56:G76) -> 0

Sheet 3. Opportunities
B2: EFFICIENCY OPPORTUNITIES AND ELECTRIC LOAD OPPORTUNITIES SUMMARY
B3: STEP 2: REVIEW EFFICIENCY OPPORTUNITIES SUMMARY
B4: ASSUMED EFFICIENCY OPPORTUNITIES
B5: Tenant Use | C5: Existing Conditions | D5: Efficiency Opportunities | E5: Estimated kWh/year Savings | G5: INSTRUCTIONS
B6: Wall Insulation | C6: ='Efficiency Opportunities'!B11 ->  | D6: =IF(C6="","",'Efficiency Opportunities'!C11) ->  | E6: ='Efficiency Opportunities'!K11 -> 0 | G6: 0 | H6: Auto-populated Fields
B7: Roof Insulation | C7: ='Efficiency Opportunities'!B12 ->  | D7: =IF(C7="","",'Efficiency Opportunities'!C12) ->  | E7: ='Efficiency Opportunities'!K12 -> 0 | G7: 0 | H7: Subtotal Fields
B8: Glazing Type | C8: ='Efficiency Opportunities'!B13 ->  | D8: =IF(C8="","",'Efficiency Opportunities'!C13) ->  | E8: ='Efficiency Opportunities'!K13 -> 0 | G8: 0 | H8: Input Fields
B9: Domestic Hot Water Heater (DHW) Type | C9: ='Efficiency Opportunities'!B14 ->  | D9: =IF(C9="","",'Efficiency Opportunities'!C14) ->  | E9: ='Efficiency Opportunities'!K14 -> 0 | H9: Instructions
B10: Heating System Type | C10: ='Efficiency Opportunities'!B15 ->  | D10: =IF(C10="","",'Efficiency Opportunities'!C15) ->  | E10: ='Efficiency Opportunities'!K15 -> 0
B11: Cooling System Type | C11: ='Efficiency Opportunities'!B16 ->  | D11: =IF(C11="","",'Efficiency Opportunities'!C16) ->  | E11: ='Efficiency Opportunities'!K16 -> 0
B12: Refrigerators | C12: ='Efficiency Opportunities'!B17 ->  | D12: =IF(C12="","",'Efficiency Opportunities'!C17) ->  | E12: ='Efficiency Opportunities'!K17 -> 0
B13: TOTAL TENANT EFFICIENCY OPPORTUNITIES SAVINGS | E13: =SUM(E6:E12) -> 0
B14: Owner Use | C14: Existing Conditions | D14: Efficiency Opportunities | E14: Estimated kWh/year Savings
B15: ='Efficiency Opportunities'!A21 -> Pool Pump | C15: ='Efficiency Opportunities'!B21 -> No Pool Pump | D15: ='Efficiency Opportunities'!C21 -> Efficiency Upgrade Not Assumed | E15: ='Efficiency Opportunities'!K21 -> 0
B16: 24 Hour Lighting Fixtures | C16: =IF('2. Property Characteristics'!E51="Yes", "All LED",IF('2. Property Characteristics'!E52="No","No 24 Hour Fixtures", "Non-LED")) -> No 24 Hour Fixtures | D16: =IF(C16="Non-LED", "All LED","No Opportunities") -> No Opportunities | E16: ='Efficiency Opportunities'!J45 -> 0
B17: Night Time Lighting Fixtures | C17: =IF('2. Property Characteristics'!E51="Yes", "All LED",IF('2. Property Characteristics'!E53="No","No Night Time Fixtures", "Non-LED")) -> No Night Time Fixtures | D17: =IF(C17="Non-LED", "All LED","No Opportunities") -> No Opportunities | E17: ='Efficiency Opportunities'!L45 -> 0
B18: TOTAL OWNER EFFICIENCY OPPORTUNITIES SAVINGS | E18: =SUM(E15:E17) -> 0
B20: STEP 3: SELECT ADDED ELECTRIC LOAD OPPORTUNITIES
B21: (Select Yes/No Below) | C21: Added Tenant Electric Load Opportunities | E21: Estimated Annual kWh Load
B22: No | C22: Upgrade In-Unit Gas/Propane Domestic Hot Water Heating System to In-Unit Heat Pump Hot Water Heaters? | E22: =_xlfn.IFNA(IF(OR(B22="No",B27="Yes",Values!K22<>Values!E10),0,'Electric Load Opportunity'!F18),0) -> 0
B23: No | C23: Upgrade In-Unit Gas/Propane Space Heating System to In-Unit Heat Pump Heating System? | E23: =_xlfn.IFNA(IF(OR(B23="No",B27="Yes",Values!K23<>Values!I10),0,'Electric Load Opportunity'!F19),0) -> 0
B24: No | C24: Upgrade Gas/Propane Stove and Oven to Electric Stove and Oven? | E24: =IF(OR(B24="No",B27="Yes"),0,'Electric Load Opportunity'!F20) -> 0
B25: No | C25: Upgrade All Gas/Propane Dryers to Electric Dryers? | E25: =IF(OR(B25="No",B27="Yes",'2. Property Characteristics'!F47=Values!B12,'2. Property Characteristics'!F46<>Values!A12),0,'Electric Load Opportunity'!F21) -> 0
B26: No | C26: Add Continuous Ventilation to Apartments? | E26: =IF(OR(B26="No",B27="Yes"),0,'Electric Load Opportunity'!F22) -> 0
B27: No | C27: Use Custom Calculations Instead of Default Calculations For Added Tenant Electric Load? (If selected Yes, supporting documentations must be uploaded to PowerClerk at EEC Milestone)
B28: 0 | C28: Enter Estimated Added Load per Apartment (kWh) | E28: =IF(B27="Yes",'Electric Load Opportunity'!F23,0) -> 0
B29: TOTAL ADDED TENANT ELECTRIC LOAD (kWh/year) | E29: =SUM(E22:E28) -> 0
B30: (Select Yes/No Below) | C30: Added Owner Electric Load Opportunity | E30: Estimated Annual kWh Load
B31: No | C31: Upgrade Central Gas/Propane Domestic Hot Water Heating System to Central Heat Pump Hot Water Heaters? | E31: =IF(OR(B34="Yes",B31="No",Values!K22<>Values!C10),0,'Electric Load Opportunity'!F10) -> 0
B32: No | C32: Upgrade Gas/Propane Pool Heaters to Heat Pump Pool Heaters? | E32: =IF(B34="Yes",0,IF(AND(B32="Yes",'2. Property Characteristics'!C46=Values!M11),'Electric Load Opportunity'!F11,0)) -> 0
B33: 0 | C33: Enter Quantity of New EV Charging Stations | E33: =_xlfn.IFNA(IF(B34="Yes",0,'Electric Load Opportunity'!F13),0) -> 0
B34: No | C34: Use Custom Calculations Instead of Default Calculations For Added Owner Electric Load? (If selected Yes, supporting documentations must be uploaded to PowerClerk at EEC Milestone)
B35: 0 | C35: Enter Estimated Added Total Owner Load(kWh) | E35: =IF(B34="Yes",'Electric Load Opportunity'!F14,0) -> 0
B36: TOTAL ADDED OWNER ELECTRIC LOAD (kWh/year) | E36: =SUM(E31:E35) -> 0
B38: STEP 4: ENTER PAST 12 MONTH KWH USE - ENERGY BASELINE
B39: 3a. Enter Owner kWh total from previous 12 month period. This will be treated as the baseline to subtract the efficiency opportunities, taking added loads into account to determine the appropriate sizing for solar system.
B40: User Entered | C40: Enter the total kWh for all owner-paid accounts for the previous 12 month period (This total will be verified by program post-reservation.)
B41: 3b. Enter Tenant kWh total from previous 12 month period. This will be treated as the baseline to subtract the efficiency opportunities, taking added loads into account to determine the appropriate sizing for solar system.
B42: User Entered | C42: Enter the total kWh for all tenant accounts for the previous 12 month period
B44: STEP 5: ENTER POWERCLERK VALUES FROM RESERVATION REQUEST APPROVAL NOTIFICATION
B45: User Entered | C45: Enter Owner %
B46: User Entered | C46: Enter Tenant %
B47: User Entered | C47: Enter System Rating (kW CEC-AC)
B48: User Entered | C48: Enter Design Factor
B49: User Entered | C49: Enter CSI Rating (kW CSI-AC)
B50: User Entered | C50: Enter Estimated Annual Production (kWh)
B52: STEP 6: REVIEW SOLAR SIZING SUMMARY
B53: Owner Offset System
B54: Total kWh for All Owner-Paid Accounts for the Previous 12 Month Period | E54: =IF(B40="User Entered",0,B40) -> 0
B55: Efficiency Opportunities Savings | E55: =-E18 -> 0
B56: Added Electric Load Opportunity | E56: =E36 -> 0
B57: Maximum Annual Aggregated Owner kWh Offset | E57: =IFERROR(E54+E55+E56,0) -> 0
B58: Planned Annual Owner kWh PV Allocation | E58: =IFERROR(B45*B50,0) -> 0
B59: Tenant Offset System
B60: Total kWh for All Tenant Accounts for the Previous 12 Month Period | E60: =IF(B42="User Entered",0, B42) -> 0
B61: Efficiency Opportunities Savings | E61: =-E13 -> 0
B62: Added Electric Load Opportunity | E62: =E29 -> 0
B63: Maximum Annual Aggregated Tenant kWh Offset | E63: =IFERROR(E60+E61+E62,0) -> 0
B64: Planned Annual Tenant kWh PV Allocation | E64: =IFERROR(B46*B50,0) -> 0
B65: Total Property Offset System
B66: Maximum Annual Property kWh Offset | E66: =_xlfn.IFS(B45=0,E63,B45>0,E57+E63) -> 0

Sheet Update Log (hidden)
A1: Version | B1: Update Date | C1: Update Description
A2: 1.1 | B2: 2019-09-12 | C2: Unhide Horizontal and Vertical Scroll Bars
A3: 1.2 | B3: 2019-10-04 | C3: Fix 12-hour fixtures coniditonal formatting bug
A4: 1.2 | B4: 2019-10-04 | C4: Consolidated existing lighting wattage options, improve misc formatting
A5: 1.3 | B5: 2019-12-10 | C5: Removed ALERT #3 for the kWh offset cap
A6: 1.3 | B6: 2019-12-10 | C6: Updated wording for Alert#1 & 2
A7: 1.3 | B7: 2019-12-10 | C7: Changed wording and added notes for Custom Calculated Electrification Loads
A8: 1.3 | B8: 2019-12-10 | C8: Changed "Owner" to "Host Customer" on the signature page
A9: 1.3 | B9: 2019-12-10 | C9: Updated formatting on the Signature Page
A10: 1.3 | B10: 2019-12-12 | C10: Updated PowerClerk upload tab: added 4 fields related to pool and spa type which were not mapped previously. Removed fields for old "other" lighting type
A11: 1.3 | B11: 2019-12-12 | C11: Automate Powerclerk upload tab export
A12: 1.3 | B12: 2019-12-17 | C12: Updated Opportunity tab Step 5: - Edit title to, “Enter PowerClerk Values from Reservation Request Approval Notification” - Move “Design Factor” metric up, to come after “CEC-AC” but before “CSI-AC” -Remove the Inverter Rating (kW AC)
A13: 1.3 | B13: 2019-12-19 | C13: Changed “Maximum System Size (kW CEC-AC)” to “Maximum Incentivized System Size (kW CEC-AC)”
A14: 1.3 | B14: 2019-12-19 | C14: Moved "Export Data To PowerClerk" button to Update Log tab
A15: 1.3 | B15: 2019-12-26 | C15: Changed the Fuel Type dropdown values from "Gas, Electric" to "Natural Gas, Electricity" to make them align with the default values in eO.
A16: 1.31 | B16: 2020-04-03 | C16: - Fixed some formatting issues - Updated roof insulation efficiency opportunity to be only applicable to Pitched Roof - Updated high efficiency AC and heat pump efficiency opportunities to be only available in CZ 13,14,15 with SCE as the electric service provider.
A17: 1.32 | B17: 2021-03-22 | C17: Update to cell C17 on Opportunities tab. Cell was referencing E52 from the Property Characteristics tab rather than E53.
A18: 1.33 | B18: 2022-03-14 | C18: - Deleted "Maximum incentivized kWh production" field on Opportunities tab and Signature tab - Relabeled rows 57 and 63 on Opportunities tab: Removed the word “Recommended” and replaced with “Maximum” - Deleted row 67 "Maximum Incentivized System Size (kW CEC-AC) on Opportunities tab and Signature tab - Edited the formula in cell E66: if the “Maximum Annual Aggregated Owner kWh Offset” is less than 0, then the “Maximum Annual Property kWh Offset” is equal to the “Maximum Annual Aggregated Tenant kWh Offset” only; if the “Maximum Annual Aggregated Owner kWh Offset” is greater than 0, then the “Maximum Annual Property kWh Offset” is equal to the “Maximum Annual Aggregated Tenant kWh Offset” plus the “Maximum Annual Aggregated Owner kWh Offset” - Edited the comment pop-outs for the “DHW System Type”, “Space Cooling System Type”, and “Space Heating System Type” to include instructions on how to enter multiple system types. - Edited the heading in Row 35 to specify equipment information selected is for tenant units. - Added numerical picklists for "Year Built", "Number of Buildings", and "Number of Floors" fields on Property Characteristics tab
A19: 1.33 | B19: 2022-03-14 | C19: Changed 'Protect Workbook' password (SOM019); 'Protect Sheet' password is the same
A20: 1.33 | B20: 2022-08-23 | C20: Edited the formula in E66 to account for projects that are tenant only, i.e. no common area offset

Sheet 4. Signature (hidden)
C2: SOMAH SOLAR SIZING TOOL HOST CUSTOMER SIGNATURE FORM
C3: PROJECT SITE INFORMATION
C4: Powerclerk Application Number | F4: ='2. Property Characteristics'!C4 -> Application Number
C5: Property Name | F5: ='2. Property Characteristics'!C5 -> Property Name
C6: Property Address | F6: ='2. Property Characteristics'!C6 -> Property Address
C7: Property City | F7: ='2. Property Characteristics'!C7 -> Property City
C8: Property Zip Code | F8: ='2. Property Characteristics'!C8 -> Property Zip Code
C9: SOLAR SIZING SUMMARY
C10: Owner Offset System
C11: Total kWh for All Owner-Paid Accounts for the Previous 12 Month Period | G11: ='3. Opportunities'!E54 -> 0
C12: Efficiency Opportunities Savings | G12: ='3. Opportunities'!E55 -> 0
C13: Added Electric Load Opportunity | G13: ='3. Opportunities'!E56 -> 0
C14: Recommended Annual Aggregated Owner kWh Offset | G14: ='3. Opportunities'!E57 -> 0
C15: Planned Annual Owner kWh PV Allocation | G15: ='3. Opportunities'!E58 -> 0
C16: Tenant Offset System
C17: Total kWh for All Tenant Accounts for the Previous 12 Month Period | G17: ='3. Opportunities'!E60 -> 0
C18: Efficiency Opportunities Savings | G18: ='3. Opportunities'!E61 -> 0
C19: Added Electric Load Opportunity | G19: ='3. Opportunities'!E62 -> 0
C20: ='3. Opportunities'!B63 -> Maximum Annual Aggregated Tenant kWh Offset | G20: ='3. Opportunities'!E63 -> 0
C21: ='3. Opportunities'!B64 -> Planned Annual Tenant kWh PV Allocation | G21: ='3. Opportunities'!E64 -> 0
C22: Total Property Offset System
C23: Maximum Annual Property kWh Offset | G23: ='3. Opportunities'!E66 -> 0
C25: By signing below I, the Host Customer of the property acknowledge that I have read, understand, and agree to the following:
C26: =IF(E26="","","Initials") ->  | E26: =IFERROR(IF(G15>G14,Values!P22,""),"") -> 
C27: =IF(E27="","","Initials") ->  | E27: =IFERROR(IF(G21>G20,Values!P23,""),"") -> 
E28: =IFERROR(IF(OR(G13>0,G19>0),Values!P25,""),"") -> 
C29: =IF(E29="","","Initials") -> Initials | E29: I am aware that the SOMAH program can help identify and provide referral assistance for additional energy efficiency and electrification programs and understand that I can request such support via calsomah.org.
E31: Host Customer Signature and Date

Sheet PowerClerk Upload (hidden)
A1: {data: SST Version} | B1: {ProjectNumber} | C1: {data: Property Climate Zone} | D1: {data: Workbook Author Name} | E1: {data: Workbook Author Title} | F1: {data: Specify Workbook Author Title} | G1: {data: Energy Consultant Credential} | H1: {data: Energy Consultant Credential Number} | I1: {data: Property Owners Organization} | J1: {data: Year Built} | K1: {data: Number of Apartments} | L1: {data: Number of Buildings} | M1: {data: Number of Floors} | N1: {data: Occupancy Type} | O1: {data: Specify Occupancy Type} | P1: {data: Total Number of Bedrooms} | Q1: {data: Gross Square Footage of Building(s)} | R1: {data: Wall Construction Type} | S1: {data: Specify Wall Construction Type} | T1: {data: Are the walls insulated} | U1: {data: Specify Wall Insulation Type} | V1: {data: Roof Construction Method} | W1: {data: Specify Roof Construction Method} | X1: {data: Roof Insulation R-Value} | Y1: {data: Specify Roof Insulation R-Value} | Z1: {data: Window Frame Type} | AA1: {data: Other: Specify Window Frame Type} | AB1: {data: Glazing Type} | AC1: {data: Specify Glazing Type} | AD1: {data: Domestic Hot Water Heater (DHW) Type} | AE1: {data: DHW Fuel Type} | AF1: {data: DHW System Type} | AG1: {data: Is there a space cooling system} | AH1: {data: Space Cooling Type} | AI1: {data: Space Cooling System Type} | AJ1: {data: Space Heating Type} | AK1: {data: Space Heating Fuel Type} | AL1: {data: Space Heating System Type} | AM1: {data: SST Notes} | AN1: {data: Quantity of pools and SPAs} | AO1: {data: Quantity of existing variable speed pumps} | AP1: {data: Pool Type} | AQ1: {data: Spa Type} | AR1: {data: Estimated Pool Surface Area (sqft)} | AS1: {data: Estimated Spa Surface Area (sqft)} | AT1: {data: Existing high rise water pressure boosting system} | AU1: {data: Are existing booster(s) variable speed} | AV1: {data: Laundry} | AW1: {data: Dryer Type} | AX1: {data: Are the majority of refrigerators manufactured before 2000} | AY1: {data: Stove/Oven Type} | AZ1: {data: All common area lighting upgraded to LED} | BA1: {data: Have 24 hour fixtures in corridor/stairwell/parking} | BB1: {data: Have night time fixtures (12 hour)} | BC1: {data: 24 Incandescent Wattage} | BD1: {data: 24 CFL Wattage} | BE1: {data: 24 Linear Fluorescent Wattage} | BF1: {data: 24 High Intensity Discharge Wattage} | BG1: {data: 24 Incandescent Quantity} | BH1: {data: 24 CFL Quantity} | BI1: {data: 24 Linear Fluorescent Quantity} | BJ1: {data: 24 High Intensity Discharge Quantity} | BK1: {data: 12 Incandescent Wattage} | BL1: {data: 12 CFL Wattage} | BM1: {data: 12 Linear Fluorescent Wattage} | BN1: {data: 12 High Intensity Wattage} | BO1: {data: 12 Incandescent Quantity} | BP1: {data: 12 CFL Quantity} | BQ1: {data: 12 Linear Fluorescent Quantity} | BR1: {data: 12 High Intensity Quantity} | BS1: {data: Wall Insulation Efficiency Opportunities} | BT1: {data: Roof Insulation Efficiency Opportunities} | BU1: {data: Glazing Type Efficiency Opportunities} | BV1: {data: Domestic Hot Water Heater (DHW) Type Efficiency Opportunities} | BW1: {data: Heating System Type Efficiency Opportunities} | BX1: {data: Cooling System Type Efficiency Opportunities} | BY1: {data: Refrigerators Efficiency Opportunities} | BZ1: {data: Wall Insulation Estimated kWh/year Savings} | CA1: {data: Roof Insulation Estimated kWh/year Savings} | CB1: {data: Glazing Type Estimated kWh/year Savings} | CC1: {data: Domestic Hot Water Heater (DHW) Type Estimated kWh/year Savings} | CD1: {data: Heating System Type Estimated kWh/year Savings} | CE1: {data: Cooling System Type Estimated kWh/year Savings} | CF1: {data: Refrigerators Estimated kWh/year Savings} | CG1: {data: Total Tenant Efficiency Opportunities Savings} | CH1: {data: Pool Pump Efficiency Opportunities} | CI1: {data: 24 Hour Lighting Fixtures Efficiency Opportunities} | CJ1: {data: Night Time Lighting Fixtures Efficiency Opportunities} | CK1: {data: Pool Pump Estimated kWh/year Savings} | CL1: {data: 24 Hour Lighting Fixtures Estimated kWh/year Savings} | CM1: {data: Night Time Lighting Fixtures Estimated kWh/year Savings} | CN1: {data: Total Owner Efficiency Opportunities Savings} | CO1: {data: Upgrade in-unit gas domestic hot water heating system to in-unit heat pump hot water heaters} | CP1: {data: Upgrade in-unit gas space heating system to in-unit heat pump heating system} | CQ1: {data: Upgrade gas stove and oven to electric stove and oven} | CR1: {data: Upgrade all gas dryers to electric dryers} | CS1: {data: Add continuous ventilation to apartments} | CT1: {data: Estimated New kWh Load for Hot Water Heating System Upgrade} | CU1: {data: Estimated New kWh Load for Space Heating Upgrade} | CV1: {data: Estimated New kWh Load for Stove and Oven Upgrade} | CW1: {data: Estimated New kWh Load for Dryer Upgrade} | CX1: {data: Estimated New kWh Load for Ventilation Upgrade} | CY1: {data: Use custom calculations for added electric load} | CZ1: {data: Estimated Added Load per Apartment (kWh)} | DA1: {data: Total Tenant New Electric Load} | DB1: {data: Upgrade central gas domestic hot water heating system to central heat pump hot water heaters} | DC1: {data: Upgrade gas pool heaters to heat pump pool heaters} | DD1: {data: Quantity of New EV Charging Stations} | DE1: {data: Estimated New kWh Load for Hot Water Heating Upgrade} | DF1: {data: Estimated New kWh Load for pool heaters} | DG1: {data: Estimated New kWh Load for EV Charging Stations} | DH1: {data: Total Common New Electric Load} | DI1: {data: Total kWh for all owner-paid accounts for the previous 12 month period} | DJ1: {data: Total kWh for all tenant accounts for the previous 12 month period} | DK1: {data: Total kWh for All Owner-Paid Accounts for the Previous 12 Month Period 2} | DL1: {data: Owner Efficiency Opportunities Savings} | DM1: {data: Added Electric Load Opportunity} | DN1: {data: SST Common Area (kWh)} | DO1: {data: Planned Owner kWh PV Allocation} | DP1: {data: Total kWh for All Tenant Accounts for the Previous 12 Month Period 2} | DQ1: {data: Tenant Efficiency Opportunities Savings} | DR1: {data: Added Tenant Electric Load Opportunity} | DS1: {data: SST Tenant Area (kWh)} | DT1: {data: Planned Tenant kWh PV Allocation} | DU1: {data: Maximum Incentivized Rating (kW)}
A2: ='1. Instructions'!A2 -> Version 1.33 | B2: ='2. Property Characteristics'!C4 -> Application Number | C2: ='2. Property Characteristics'!C9 -> Enter Zip Code Above | D2: ='2. Property Characteristics'!C10 -> 0 | E2: ='2. Property Characteristics'!C11 -> 0 | F2: ='2. Property Characteristics'!F11 -> 0 | G2: ='2. Property Characteristics'!C12 -> 0 | H2: ='2. Property Characteristics'!C13 -> 0 | I2: ='2. Property Characteristics'!C14 -> Property Owner's Organization | J2: ='2. Property Characteristics'!C21 -> 0 | K2: ='2. Property Characteristics'!C22 -> 0 | L2: ='2. Property Characteristics'!C23 -> 0 | M2: ='2. Property Characteristics'!C24 -> 0 | N2: ='2. Property Characteristics'!C25 -> 0 | O2: ='2. Property Characteristics'!F25 -> 0 | P2: ='2. Property Characteristics'!C26 -> 0 | Q2: ='2. Property Characteristics'!C27 -> 0 | R2: ='2. Property Characteristics'!C29 -> 0 | S2: ='2. Property Characteristics'!F29 -> 0 | T2: ='2. Property Characteristics'!C30 -> 0 | U2: ='2. Property Characteristics'!F30 -> 0 | V2: ='2. Property Characteristics'!C31 -> 0 | W2: ='2. Property Characteristics'!F31 -> 0 | X2: ='2. Property Characteristics'!C32 -> 0 | Y2: ='2. Property Characteristics'!F32 -> 0 | Z2: ='2. Property Characteristics'!C33 -> 0 | AA2: ='2. Property Characteristics'!F33 -> 0 | AB2: ='2. Property Characteristics'!C34 -> 0 | AC2: ='2. Property Characteristics'!F34 -> 0 | AD2: ='2. Property Characteristics'!C36 -> 0 | AE2: ='2. Property Characteristics'!C37 -> 0 | AF2: ='2. Property Characteristics'!C38 -> 0 | AG2: ='2. Property Characteristics'!C39 -> No | AH2: ='2. Property Characteristics'!C40 -> 0 | AI2: ='2. Property Characteristics'!C41 -> 0 | AJ2: ='2. Property Characteristics'!F36 -> 0 | AK2: ='2. Property Characteristics'!F37 -> 0 | AL2: ='2. Property Characteristics'!F38 -> 0 | AM2: ='2. Property Characteristics'!E40 -> 0 | AN2: ='2. Property Characteristics'!C44 -> 0 | AO2: ='2. Property Characteristics'!C45 -> 0 | AP2: ='2. Property Characteristics'!C46 -> 0 | AQ2: ='2. Property Characteristics'!C47 -> 0 | AR2: ='2. Property Characteristics'!C48 -> 0 | AS2: ='2. Property Characteristics'!C49 -> 0 | AT2: ='2. Property Characteristics'!F44 -> 0 | AU2: ='2. Property Characteristics'!F45 -> 0 | AV2: ='2. Property Characteristics'!F46 -> 0 | AW2: ='2. Property Characteristics'!F47 -> 0 | AX2: ='2. Property Characteristics'!F48 -> 0 | AY2: ='2. Property Characteristics'!F49 -> 0 | AZ2: ='2. Property Characteristics'!E51 -> No | BA2: ='2. Property Characteristics'!E52 -> No | BB2: ='2. Property Characteristics'!E53 -> No | BC2: ='2. Property Characteristics'!C79 -> 0 | BD2: ='2. Property Characteristics'!C80 -> 0 | BE2: ='2. Property Characteristics'!C81 -> 0 | BF2: ='2. Property Characteristics'!C82 -> 0 | BG2: ='2. Property Characteristics'!D79 -> 0 | BH2: ='2. Property Characteristics'!D80 -> 0 | BI2: ='2. Property Characteristics'!D81 -> 0 | BJ2: ='2. Property Characteristics'!D82 -> 0 | BK2: ='2. Property Characteristics'!F79 -> 0 | BL2: ='2. Property Characteristics'!F80 -> 0 | BM2: ='2. Property Characteristics'!F81 -> 0 | BN2: ='2. Property Characteristics'!F82 -> 0 | BO2: ='2. Property Characteristics'!G79 -> 0 | BP2: ='2. Property Characteristics'!G80 -> 0 | BQ2: ='2. Property Characteristics'!G81 -> 0 | BR2: ='2. Property Characteristics'!G82 -> 0 | BS2: ='3. Opportunities'!D6 ->  | BT2: ='3. Opportunities'!D7 ->  | BU2: ='3. Opportunities'!D8 ->  | BV2: ='3. Opportunities'!D9 ->  | BW2: ='3. Opportunities'!D10 ->  | BX2: ='3. Opportunities'!D11 ->  | BY2: ='3. Opportunities'!D12 ->  | BZ2: ='3. Opportunities'!E6 -> 0 | CA2: ='3. Opportunities'!E7 -> 0 | CB2: ='3. Opportunities'!E8 -> 0 | CC2: ='3. Opportunities'!E9 -> 0 | CD2: ='3. Opportunities'!E10 -> 0 | CE2: ='3. Opportunities'!E11 -> 0 | CF2: ='3. Opportunities'!E12 -> 0 | CG2: ='3. Opportunities'!E13 -> 0 | CH2: ='3. Opportunities'!D15 -> Efficiency Upgrade Not Assumed | CI2: ='3. Opportunities'!D16 -> No Opportunities | CJ2: ='3. Opportunities'!D17 -> No Opportunities | CK2: ='3. Opportunities'!E15 -> 0 | CL2: ='3. Opportunities'!E16 -> 0 | CM2: ='3. Opportunities'!E17 -> 0 | CN2: ='3. Opportunities'!E18 -> 0 | CO2: ='3. Opportunities'!B22 -> No | CP2: ='3. Opportunities'!B23 -> No | CQ2: ='3. Opportunities'!B24 -> No | CR2: ='3. Opportunities'!B25 -> No | CS2: ='3. Opportunities'!B26 -> No | CT2: ='3. Opportunities'!E22 -> 0 | CU2: ='3. Opportunities'!E23 -> 0 | CV2: ='3. Opportunities'!E24 -> 0 | CW2: ='3. Opportunities'!E25 -> 0 | CX2: ='3. Opportunities'!E26 -> 0 | CY2: ='3. Opportunities'!B27 -> No | CZ2: ='3. Opportunities'!E28 -> 0 | DA2: ='3. Opportunities'!E29 -> 0 | DB2: ='3. Opportunities'!B31 -> No | DC2: ='3. Opportunities'!B32 -> No | DD2: ='3. Opportunities'!B33 -> 0 | DE2: ='3. Opportunities'!E31 -> 0 | DF2: ='3. Opportunities'!E32 -> 0 | DG2: ='3. Opportunities'!E33 -> 0 | DH2: ='3. Opportunities'!E36 -> 0 | DI2: =IF('3. Opportunities'!B40="User Entered", 0, '3. Opportunities'!B40) -> 0 | DJ2: =IF('3. Opportunities'!B42="User Entered", 0, '3. Opportunities'!B42) -> 0 | DK2: =IF('3. Opportunities'!E54="User Entered", 0, '3. Opportunities'!E54) -> 0 | DL2: ='3. Opportunities'!E55 -> 0 | DM2: ='4. Signature'!G13 -> 0 | DN2: ='3. Opportunities'!E57 -> 0 | DO2: =IF('3. Opportunities'!E58="User Entered", 0, '3. Opportunities'!E58) -> 0 | DP2: ='3. Opportunities'!E60 -> 0 | DQ2: ='3. Opportunities'!E61 -> 0 | DR2: ='3. Opportunities'!E62 -> 0 | DS2: ='3. Opportunities'!E63 -> 0 | DT2: =IF('3. Opportunities'!E64="User Entered", 0, '3. Opportunities'!E64) -> 0 | DU2: ='3. Opportunities'!#REF! -> 

Sheet Efficiency Opportunities (hidden)
A1: EFFICIENCY OPPORTUNITIES
A2: Climate Zone | B2: =IFERROR(VLOOKUP('2. Property Characteristics'!C9,Values!D22:E39,2, FALSE),"") -> 
A3: Electric Utility | B3: ='2. Property Characteristics'!C18 -> SCE
A4: Space Heating Fuel Type | B4: ='2. Property Characteristics'!F37 -> 0
A5: Space Cooling ? | B5: ='2. Property Characteristics'!C39 -> No
A6: SEER Less than 10? | B6: ='2. Property Characteristics'!C42 -> 0
A7: DHW Fuel Type | B7: ='2. Property Characteristics'!C37 -> 0
A8: Number of Apartments | B8: ='2. Property Characteristics'!C22 -> 0
A9: Tenant Units - Potential kWh Savings
A10: Technology | B10: Existing Conditions | C10: Efficiency Opportunities | D10: Criteria | E10: Assumed Existing Performance Rating | F10: Proposed Condition READI Energy Impact ID | G10: Unit Basis | H10: Unit Quantity | I10: Estimated kWh Per Measure Unit | K10: Estimated kWh Savings Per Building
A11: Wall Insulation | B11: =IF('2. Property Characteristics'!C30="","",IF('2. Property Characteristics'!C30="Yes","R-13","R-0")) ->  | C11: =IF(B11=Values!E4, Values!F22, Values!F24) -> Not ESA Eligible, please refer to other energy efficiency programs. | D11: N/A | E11: =B11 ->  | F11: =IFERROR(INDEX('DEER Energy Savings'!D4:D73,MATCH(1,(A11='DEER Energy Savings'!A4:A73)*(C11='DEER Energy Savings'!C4:C73)*($B$3='DEER Energy Savings'!B4:B73),0)),Values!F24) -> Not ESA Eligible, please refer to other energy efficiency programs. | G11: sq ft wall insulation | H11: =IFERROR(SQRT('2. Property Characteristics'!C27/'2. Property Characteristics'!C24)*4*9*'2. Property Characteristics'!C24,0) -> 0 | I11: 0 | K11: =IFERROR(I11*H11,0) -> 0
A12: Roof Insulation | B12: =IF('2. Property Characteristics'!C32="","",'2. Property Characteristics'!C32) ->  | C12: =IFERROR(IF(AND(OR(B12=Values!H2,B12=Values!H3),'2. Property Characteristics'!C31=Values!G2),INDEX('DEER Energy Savings'!C4:C73,MATCH(1,(A12='DEER Energy Savings'!A4:A73)*(B3='DEER Energy Savings'!B4:B73)*(B2='DEER Energy Savings'!L4:L73),0)),Values!F24),Values!F24) -> Not ESA Eligible, please refer to other energy efficiency programs. | D12: Less than R-19 (Upgrade to R-30 in CZ2-10; to R-38 in CZ1 and 11-16) | E12: R-0 | F12: =IFERROR(INDEX('DEER Energy Savings'!D4:D73,MATCH(1,(A12='DEER Energy Savings'!A4:A73)*(C12='DEER Energy Savings'!C4:C73)*($B$3='DEER Energy Savings'!B4:B73),0)),Values!F24) -> Not ESA Eligible, please refer to other energy efficiency programs. | G12: sq ft roof insulation | H12: =IFERROR('2. Property Characteristics'!C27/'2. Property Characteristics'!C24,0) -> 0 | I12: =IFERROR(INDEX('DEER Energy Savings'!E4:E73,MATCH(1,(F12='DEER Energy Savings'!D4:D73)*($B$2='DEER Energy Savings'!L4:L73)*($B$3='DEER Energy Savings'!B4:B73),0)),0) -> 0 | K12: =I12*H12 -> 0
A13: Glazing type | B13: =IF('2. Property Characteristics'!C34="","",'2. Property Characteristics'!C34) ->  | C13: =IF(B13=Values!J3,Values!F24,Values!F24) -> Not ESA Eligible, please refer to other energy efficiency programs. | D13: N/A | E13: =B13 ->  | F13: =IFERROR(INDEX('DEER Energy Savings'!D4:D73,MATCH(1,(A13='DEER Energy Savings'!A4:A73)*(C13='DEER Energy Savings'!C4:C73)*($B$3='DEER Energy Savings'!B4:B73),0)),Values!F24) -> Not ESA Eligible, please refer to other energy efficiency programs. | G13: SQFT Window | H13: ='2. Property Characteristics'!C27*0.15 -> 0 | I13: 0 | K13: 0
A14: DHW Type | B14: =IF('2. Property Characteristics'!C36="","",IF('2. Property Characteristics'!C36=Values!A12,'2. Property Characteristics'!C38, "No In-Unit DHW Systems")) ->  | C14: =_xlfn.IFNA(IF(Values!K22=Values!F10,INDEX('DEER Energy Savings'!C4:C73,MATCH(1,(A14='DEER Energy Savings'!A4:A73)*(B3='DEER Energy Savings'!B4:B73),0)),IF(OR(B7=Values!B11,B7=Values!B13),Values!F23,Values!F24)),Values!F24) -> Not ESA Eligible, please refer to other energy efficiency programs. | D14: Electric Resistance DHW | E14: =B14 ->  | F14: =IFERROR(INDEX('DEER Energy Savings'!D4:D73,MATCH(1,(A14='DEER Energy Savings'!A4:A73)*(C14='DEER Energy Savings'!C4:C73)*($B$3='DEER Energy Savings'!B4:B73),0)),Values!F24) -> Not ESA Eligible, please refer to other energy efficiency programs. | G14: Per Water Heater | H14: ='2. Property Characteristics'!C22*1 -> 0 | I14: =IFERROR(INDEX('DEER Energy Savings'!E4:E73,MATCH(1,(F14='DEER Energy Savings'!D4:D73)*($B$3='DEER Energy Savings'!B4:B73),0)),0) -> 0 | K14: 0
A15: Heating System Type | B15: =IF('2. Property Characteristics'!F36="","",IF('2. Property Characteristics'!F36=Values!A12,'2. Property Characteristics'!F38,"No In-Unit Heating Systems")) ->  | C15: =IF(Values!K23=Values!I10,Values!F23,IF(AND(OR(B15=Values!J14,B15=Values!J15),'2. Property Characteristics'!C42=Values!R2),INDEX('DEER Energy Savings'!C4:C73,MATCH(1,(A15='DEER Energy Savings'!A4:A73)*($B$2='DEER Energy Savings'!L4:L73)*($B$3='DEER Energy Savings'!B4:B73),0)),Values!F24)) -> Not ESA Eligible, please refer to other energy efficiency programs. | D15: Exsiting HP SEER <10 | E15: SEER 10 | F15: =IFERROR(INDEX('DEER Energy Savings'!D4:D73,MATCH(1,(C15='DEER Energy Savings'!C4:C73)*($B$2='DEER Energy Savings'!L4:L73)*($B$3='DEER Energy Savings'!B4:B73),0)),Values!F24) -> Not ESA Eligible, please refer to other energy efficiency programs. | G15: Per Ton(if heat pump) | H15: =2*'2. Property Characteristics'!C22 -> 0 | I15: =IFERROR(INDEX('DEER Energy Savings'!E4:E73,MATCH(1,(F15='DEER Energy Savings'!D4:D73)*($B$2='DEER Energy Savings'!L4:L73)*($B$3='DEER Energy Savings'!B4:B73),0)),0) -> 0 | K15: 0
A16: Cooling System Type | B16: =IF('2. Property Characteristics'!C41="","",IF(B5="No", "No Cooling System",IF('2. Property Characteristics'!C40=Values!A11,"No In-Unit Cooling Systems",IF('2. Property Characteristics'!C40=Values!L10, '2. Property Characteristics'!C41,'2. Property Characteristics'!C41)))) ->  | C16: =IFERROR(IF(OR(B5="No",AND('2. Property Characteristics'!C41<>Values!L15,'2. Property Characteristics'!C41<>Values!L14, '2. Property Characteristics'!C41<>Values!L17,'2. Property Characteristics'!C41<>Values!L18)),Values!F24,IF(B6="No",Values!F24, INDEX('DEER Energy Savings'!C4:C73,MATCH(1,(A16='DEER Energy Savings'!A4:A73)*(B2='DEER Energy Savings'!L4:L73)*(B3='DEER Energy Savings'!B4:B73),0)))),Values!F24) -> Not ESA Eligible, please refer to other energy efficiency programs. | D16: Exsiting split AC SEER <10 | E16: SEER 10 | F16: =IFERROR(INDEX('DEER Energy Savings'!D4:D73,MATCH(1,(A16='DEER Energy Savings'!A4:A73)*(C16='DEER Energy Savings'!C4:C73)*($B$3='DEER Energy Savings'!B4:B73),0)),Values!F24) -> Not ESA Eligible, please refer to other energy efficiency programs. | G16: Per Ton (split AC)/Per System Unit(Room AC) | H16: =IF(OR(B16=Values!L11,B16=Values!L12),'2. Property Characteristics'!C22,'2. Property Characteristics'!C22*2) -> 0 | I16: =IFERROR(INDEX('DEER Energy Savings'!E4:E73,MATCH(1,(F16='DEER Energy Savings'!D4:D73)*($B$2='DEER Energy Savings'!L4:L73)*($B$3='DEER Energy Savings'!B4:B73),0)),0) -> 0 | K16: 0
A17: Refrigerators | B17: =IF('2. Property Characteristics'!F48="","",IF('2. Property Characteristics'!F48="Yes",Values!J22,Values!J23)) ->  | C17: =IF(B17=Values!J22,Values!J24,Values!F24) -> Not ESA Eligible, please refer to other energy efficiency programs. | D17: Pre-2000, have not been upgraded | E17: =IF(B17=Values!J22,Values!J25,Values!J26) -> 399 kWh/yr | F17: =IFERROR(INDEX('DEER Energy Savings'!D4:D73,MATCH(1,(A17='DEER Energy Savings'!A4:A73)*(C17='DEER Energy Savings'!C4:C73)*($B$3='DEER Energy Savings'!B4:B73),0)),Values!F24) -> Not ESA Eligible, please refer to other energy efficiency programs. | G17: Per Refrigerators | H17: ='2. Property Characteristics'!C22 -> 0 | I17: =IFERROR(INDEX('DEER Energy Savings'!E4:E73,MATCH(1,(F17='DEER Energy Savings'!D4:D73)*($B$3='DEER Energy Savings'!B4:B73),0)),0) -> 0 | K17: 0
A18: TOTAL TENANT KWH SAVINGS | B18: =SUM(K11:K17) -> 0
A19: Common Area - Potential kWh Savings
A20: Pool Pumps | B20: Existing Conditions | C20: Efficiency Opportunities | G20: Unit Basis | H20: Quantity | I20: Estimated kWh Savings Per Pump | J20: Estimated Total kWh Savings | K20: Estimated kWh Savings Per Building
A21: Pool Pump | B21: =IF('2. Property Characteristics'!C44=0,"No Pool Pump",IF('2. Property Characteristics'!C44-'2. Property Characteristics'!C45>0,"Single Speed Pump","Variable Speed Pool Pump")) -> No Pool Pump | C21: =IF(('2. Property Characteristics'!C44-'2. Property Characteristics'!C45<=0), Values!F22,"Variable Speed Pump") -> Efficiency Upgrade Not Assumed | G21: Per Pump | H21: =IF('2. Property Characteristics'!C44=0,0,('2. Property Characteristics'!C44-'2. Property Characteristics'!C45)) -> 0 | I21: 888 | J21: =IF(H21<0,0,I21*H21) -> 0 | K21: =J21 -> 0
A22: EXISTING 24 HOUR LIGHTING FIXTURES | E22: EXISTING NIGHTTIME (12 HOUR) LIGHTING FIXTURES | I22: 24 HOUR FIXTURES SAVINGS PER UNIT | J22: 24 HOUR FIXTURES SAVINGS TOTAL | K22: 12 HOUR FIXTURES SAVINGS PER UNIT | L22: 12 HOUR FIXTURES SAVINGS TOTAL
A23: Lighting Codes | B23: Existing Wattage | C23: Quantity | D23: Proposed LED Wattage | E23: Lighting Codes | F23: Existing Wattage | G23: Quantity | H23: Proposed LED Wattage
A24: =IFERROR(VLOOKUP('2. Property Characteristics'!B56,Values!$P$11:$Q$14,2,FALSE),"") ->  | B24: =IFERROR(VLOOKUP('2. Property Characteristics'!C56,Values!$R$22:$S$36,2,FALSE),0) -> 0 | C24: ='2. Property Characteristics'!D56 -> 0 | D24: =B24/2 -> 0 | E24: =IFERROR(VLOOKUP('2. Property Characteristics'!E56,Values!$P$11:$Q$14,2,FALSE),"") ->  | F24: =IFERROR(VLOOKUP('2. Property Characteristics'!F56,Values!$R$22:$S$36,2,FALSE),0) -> 0 | G24: ='2. Property Characteristics'!G56 -> 0 | H24: =F24/2 -> 0 | I24: =B24-D24 -> 0 | J24: =(I24*C24)/1000*8760 -> 0 | K24: =F24-H24 -> 0 | L24: =(H24*G24)/1000*4380 -> 0
A25: =IFERROR(VLOOKUP('2. Property Characteristics'!B57,Values!$P$11:$Q$14,2,FALSE),"") ->  | B25: =IFERROR(VLOOKUP('2. Property Characteristics'!C57,Values!$R$22:$S$36,2,FALSE),0) -> 0 | C25: ='2. Property Characteristics'!D57 -> 0 | D25: =B25/2 -> 0 | E25: =IFERROR(VLOOKUP('2. Property Characteristics'!E57,Values!$P$11:$Q$14,2,FALSE),"") ->  | F25: =IFERROR(VLOOKUP('2. Property Characteristics'!F57,Values!$R$22:$S$36,2,FALSE),0) -> 0 | G25: ='2. Property Characteristics'!G57 -> 0 | H25: =F25/2 -> 0 | I25: =B25-D25 -> 0 | J25: =(I25*C25)/1000*8760 -> 0 | K25: =F25-H25 -> 0 | L25: =(H25*G25)/1000*4380 -> 0
A26: =IFERROR(VLOOKUP('2. Property Characteristics'!B58,Values!$P$11:$Q$14,2,FALSE),"") ->  | B26: =IFERROR(VLOOKUP('2. Property Characteristics'!C58,Values!$R$22:$S$36,2,FALSE),0) -> 0 | C26: ='2. Property Characteristics'!D58 -> 0 | D26: 0 | E26: =IFERROR(VLOOKUP('2. Property Characteristics'!E58,Values!$P$11:$Q$14,2,FALSE),"") ->  | F26: =IFERROR(VLOOKUP('2. Property Characteristics'!F58,Values!$R$22:$S$36,2,FALSE),0) -> 0 | G26: ='2. Property Characteristics'!G58 -> 0 | H26: 0 | I26: 0 | J26: 0 | K26: 0 | L26: 0
A27: =IFERROR(VLOOKUP('2. Property Characteristics'!B59,Values!$P$11:$Q$14,2,FALSE),"") ->  | B27: =IFERROR(VLOOKUP('2. Property Characteristics'!C59,Values!$R$22:$S$36,2,FALSE),0) -> 0 | C27: ='2. Property Characteristics'!D59 -> 0 | D27: 0 | E27: =IFERROR(VLOOKUP('2. Property Characteristics'!E59,Values!$P$11:$Q$14,2,FALSE),"") ->  | F27: =IFERROR(VLOOKUP('2. Property Characteristics'!F59,Values!$R$22:$S$36,2,FALSE),0) -> 0 | G27: ='2. Property Characteristics'!G59 -> 0 | H27: 0 | I27: 0 | J27: 0 | K27: 0 | L27: 0
A28: =IFERROR(VLOOKUP('2. Property Characteristics'!B60,Values!$P$11:$Q$14,2,FALSE),"") ->  | B28: =IFERROR(VLOOKUP('2. Property Characteristics'!C60,Values!$R$22:$S$36,2,FALSE),0) -> 0 | C28: ='2. Property Characteristics'!D60 -> 0 | D28: 0 | E28: =IFERROR(VLOOKUP('2. Property Characteristics'!E60,Values!$P$11:$Q$14,2,FALSE),"") ->  | F28: =IFERROR(VLOOKUP('2. Property Characteristics'!F60,Values!$R$22:$S$36,2,FALSE),0) -> 0 | G28: ='2. Property Characteristics'!G60 -> 0 | H28: 0 | I28: 0 | J28: 0 | K28: 0 | L28: 0
A29: =IFERROR(VLOOKUP('2. Property Characteristics'!B61,Values!$P$11:$Q$14,2,FALSE),"") ->  | B29: =IFERROR(VLOOKUP('2. Property Characteristics'!C61,Values!$R$22:$S$36,2,FALSE),0) -> 0 | C29: ='2. Property Characteristics'!D61 -> 0 | D29: 0 | E29: =IFERROR(VLOOKUP('2. Property Characteristics'!E61,Values!$P$11:$Q$14,2,FALSE),"") ->  | F29: =IFERROR(VLOOKUP('2. Property Characteristics'!F61,Values!$R$22:$S$36,2,FALSE),0) -> 0 | G29: ='2. Property Characteristics'!G61 -> 0 | H29: 0 | I29: 0 | J29: 0 | K29: 0 | L29: 0
A30: =IFERROR(VLOOKUP('2. Property Characteristics'!B62,Values!$P$11:$Q$14,2,FALSE),"") ->  | B30: =IFERROR(VLOOKUP('2. Property Characteristics'!C62,Values!$R$22:$S$36,2,FALSE),0) -> 0 | C30: ='2. Property Characteristics'!D62 -> 0 | D30: 0 | E30: =IFERROR(VLOOKUP('2. Property Characteristics'!E62,Values!$P$11:$Q$14,2,FALSE),"") ->  | F30: =IFERROR(VLOOKUP('2. Property Characteristics'!F62,Values!$R$22:$S$36,2,FALSE),0) -> 0 | G30: ='2. Property Characteristics'!G62 -> 0 | H30: 0 | I30: 0 | J30: 0 | K30: 0 | L30: 0
A31: =IFERROR(VLOOKUP('2. Property Characteristics'!B63,Values!$P$11:$Q$14,2,FALSE),"") ->  | B31: =IFERROR(VLOOKUP('2. Property Characteristics'!C63,Values!$R$22:$S$36,2,FALSE),0) -> 0 | C31: ='2. Property Characteristics'!D63 -> 0 | D31: 0 | E31: =IFERROR(VLOOKUP('2. Property Characteristics'!E63,Values!$P$11:$Q$14,2,FALSE),"") ->  | F31: =IFERROR(VLOOKUP('2. Property Characteristics'!F63,Values!$R$22:$S$36,2,FALSE),0) -> 0 | G31: ='2. Property Characteristics'!G63 -> 0 | H31: 0 | I31: 0 | J31: 0 | K31: 0 | L31: 0
A32: =IFERROR(VLOOKUP('2. Property Characteristics'!B64,Values!$P$11:$Q$14,2,FALSE),"") ->  | B32: =IFERROR(VLOOKUP('2. Property Characteristics'!C64,Values!$R$22:$S$36,2,FALSE),0) -> 0 | C32: ='2. Property Characteristics'!D64 -> 0 | D32: 0 | E32: =IFERROR(VLOOKUP('2. Property Characteristics'!E64,Values!$P$11:$Q$14,2,FALSE),"") ->  | F32: =IFERROR(VLOOKUP('2. Property Characteristics'!F64,Values!$R$22:$S$36,2,FALSE),0) -> 0 | G32: ='2. Property Characteristics'!G64 -> 0 | H32: 0 | I32: 0 | J32: 0 | K32: 0 | L32: 0
A33: =IFERROR(VLOOKUP('2. Property Characteristics'!B65,Values!$P$11:$Q$14,2,FALSE),"") ->  | B33: =IFERROR(VLOOKUP('2. Property Characteristics'!C65,Values!$R$22:$S$36,2,FALSE),0) -> 0 | C33: ='2. Property Characteristics'!D65 -> 0 | D33: 0 | E33: =IFERROR(VLOOKUP('2. Property Characteristics'!E65,Values!$P$11:$Q$14,2,FALSE),"") ->  | F33: =IFERROR(VLOOKUP('2. Property Characteristics'!F65,Values!$R$22:$S$36,2,FALSE),0) -> 0 | G33: ='2. Property Characteristics'!G65 -> 0 | H33: 0 | I33: 0 | J33: 0 | K33: 0 | L33: 0
A34: =IFERROR(VLOOKUP('2. Property Characteristics'!B66,Values!$P$11:$Q$14,2,FALSE),"") ->  | B34: =IFERROR(VLOOKUP('2. Property Characteristics'!C66,Values!$R$22:$S$36,2,FALSE),0) -> 0 | C34: ='2. Property Characteristics'!D66 -> 0 | D34: 0 | E34: =IFERROR(VLOOKUP('2. Property Characteristics'!E66,Values!$P$11:$Q$14,2,FALSE),"") ->  | F34: =IFERROR(VLOOKUP('2. Property Characteristics'!F66,Values!$R$22:$S$36,2,FALSE),0) -> 0 | G34: ='2. Property Characteristics'!G66 -> 0 | H34: 0 | I34: 0 | J34: 0 | K34: 0 | L34: 0
A35: =IFERROR(VLOOKUP('2. Property Characteristics'!B67,Values!$P$11:$Q$14,2,FALSE),"") ->  | B35: =IFERROR(VLOOKUP('2. Property Characteristics'!C67,Values!$R$22:$S$36,2,FALSE),0) -> 0 | C35: ='2. Property Characteristics'!D67 -> 0 | D35: 0 | E35: =IFERROR(VLOOKUP('2. Property Characteristics'!E67,Values!$P$11:$Q$14,2,FALSE),"") ->  | F35: =IFERROR(VLOOKUP('2. Property Characteristics'!F67,Values!$R$22:$S$36,2,FALSE),0) -> 0 | G35: ='2. Property Characteristics'!G67 -> 0 | H35: 0 | I35: 0 | J35: 0 | K35: 0 | L35: 0
A36: =IFERROR(VLOOKUP('2. Property Characteristics'!B68,Values!$P$11:$Q$14,2,FALSE),"") ->  | B36: =IFERROR(VLOOKUP('2. Property Characteristics'!C68,Values!$R$22:$S$36,2,FALSE),0) -> 0 | C36: ='2. Property Characteristics'!D68 -> 0 | D36: 0 | E36: =IFERROR(VLOOKUP('2. Property Characteristics'!E68,Values!$P$11:$Q$14,2,FALSE),"") ->  | F36: =IFERROR(VLOOKUP('2. Property Characteristics'!F68,Values!$R$22:$S$36,2,FALSE),0) -> 0 | G36: ='2. Property Characteristics'!G68 -> 0 | H36: 0 | I36: 0 | J36: 0 | K36: 0 | L36: 0
A37: =IFERROR(VLOOKUP('2. Property Characteristics'!B69,Values!$P$11:$Q$14,2,FALSE),"") ->  | B37: =IFERROR(VLOOKUP('2. Property Characteristics'!C69,Values!$R$22:$S$36,2,FALSE),0) -> 0 | C37: ='2. Property Characteristics'!D69 -> 0 | D37: 0 | E37: =IFERROR(VLOOKUP('2. Property Characteristics'!E69,Values!$P$11:$Q$14,2,FALSE),"") ->  | F37: =IFERROR(VLOOKUP('2. Property Characteristics'!F69,Values!$R$22:$S$36,2,FALSE),0) -> 0 | G37: ='2. Property Characteristics'!G69 -> 0 | H37: 0 | I37: 0 | J37: 0 | K37: 0 | L37: 0
A38: =IFERROR(VLOOKUP('2. Property Characteristics'!B70,Values!$P$11:$Q$14,2,FALSE),"") ->  | B38: =IFERROR(VLOOKUP('2. Property Characteristics'!C70,Values!$R$22:$S$36,2,FALSE),0) -> 0 | C38: ='2. Property Characteristics'!D70 -> 0 | D38: 0 | E38: =IFERROR(VLOOKUP('2. Property Characteristics'!E70,Values!$P$11:$Q$14,2,FALSE),"") ->  | F38: =IFERROR(VLOOKUP('2. Property Characteristics'!F70,Values!$R$22:$S$36,2,FALSE),0) -> 0 | G38: ='2. Property Characteristics'!G70 -> 0 | H38: 0 | I38: 0 | J38: 0 | K38: 0 | L38: 0
A39: =IFERROR(VLOOKUP('2. Property Characteristics'!B71,Values!$P$11:$Q$14,2,FALSE),"") ->  | B39: =IFERROR(VLOOKUP('2. Property Characteristics'!C71,Values!$R$22:$S$36,2,FALSE),0) -> 0 | C39: ='2. Property Characteristics'!D71 -> 0 | D39: 0 | E39: =IFERROR(VLOOKUP('2. Property Characteristics'!E71,Values!$P$11:$Q$14,2,FALSE),"") ->  | F39: =IFERROR(VLOOKUP('2. Property Characteristics'!F71,Values!$R$22:$S$36,2,FALSE),0) -> 0 | G39: ='2. Property Characteristics'!G71 -> 0 | H39: 0 | I39: 0 | J39: 0 | K39: 0 | L39: 0
A40: =IFERROR(VLOOKUP('2. Property Characteristics'!B72,Values!$P$11:$Q$14,2,FALSE),"") ->  | B40: =IFERROR(VLOOKUP('2. Property Characteristics'!C72,Values!$R$22:$S$36,2,FALSE),0) -> 0 | C40: ='2. Property Characteristics'!D72 -> 0 | D40: 0 | E40: =IFERROR(VLOOKUP('2. Property Characteristics'!E72,Values!$P$11:$Q$14,2,FALSE),"") ->  | F40: =IFERROR(VLOOKUP('2. Property Characteristics'!F72,Values!$R$22:$S$36,2,FALSE),0) -> 0 | G40: ='2. Property Characteristics'!G72 -> 0 | H40: 0 | I40: 0 | J40: 0 | K40: 0 | L40: 0
A41: =IFERROR(VLOOKUP('2. Property Characteristics'!B73,Values!$P$11:$Q$14,2,FALSE),"") ->  | B41: =IFERROR(VLOOKUP('2. Property Characteristics'!C73,Values!$R$22:$S$36,2,FALSE),0) -> 0 | C41: ='2. Property Characteristics'!D73 -> 0 | D41: 0 | E41: =IFERROR(VLOOKUP('2. Property Characteristics'!E73,Values!$P$11:$Q$14,2,FALSE),"") ->  | F41: =IFERROR(VLOOKUP('2. Property Characteristics'!F73,Values!$R$22:$S$36,2,FALSE),0) -> 0 | G41: ='2. Property Characteristics'!G73 -> 0 | H41: 0 | I41: 0 | J41: 0 | K41: 0 | L41: 0
A42: =IFERROR(VLOOKUP('2. Property Characteristics'!B74,Values!$P$11:$Q$14,2,FALSE),"") ->  | B42: =IFERROR(VLOOKUP('2. Property Characteristics'!C74,Values!$R$22:$S$36,2,FALSE),0) -> 0 | C42: ='2. Property Characteristics'!D74 -> 0 | D42: 0 | E42: =IFERROR(VLOOKUP('2. Property Characteristics'!E74,Values!$P$11:$Q$14,2,FALSE),"") ->  | F42: =IFERROR(VLOOKUP('2. Property Characteristics'!F74,Values!$R$22:$S$36,2,FALSE),0) -> 0 | G42: ='2. Property Characteristics'!G74 -> 0 | H42: 0 | I42: 0 | J42: 0 | K42: 0 | L42: 0
A43: =IFERROR(VLOOKUP('2. Property Characteristics'!B75,Values!$P$11:$Q$14,2,FALSE),"") ->  | B43: =IFERROR(VLOOKUP('2. Property Characteristics'!C75,Values!$R$22:$S$36,2,FALSE),0) -> 0 | C43: ='2. Property Characteristics'!D75 -> 0 | D43: 0 | E43: =IFERROR(VLOOKUP('2. Property Characteristics'!E75,Values!$P$11:$Q$14,2,FALSE),"") ->  | F43: =IFERROR(VLOOKUP('2. Property Characteristics'!F75,Values!$R$22:$S$36,2,FALSE),0) -> 0 | G43: ='2. Property Characteristics'!G75 -> 0 | H43: 0 | I43: 0 | J43: 0 | K43: 0 | L43: 0
A44: =IFERROR(VLOOKUP('2. Property Characteristics'!B76,Values!$P$11:$Q$14,2,FALSE),"") ->  | B44: =IFERROR(VLOOKUP('2. Property Characteristics'!C76,Values!$R$22:$S$36,2,FALSE),0) -> 0 | C44: ='2. Property Characteristics'!D76 -> 0 | D44: 0 | E44: =IFERROR(VLOOKUP('2. Property Characteristics'!E76,Values!$P$11:$Q$14,2,FALSE),"") ->  | F44: =IFERROR(VLOOKUP('2. Property Characteristics'!F76,Values!$R$22:$S$36,2,FALSE),0) -> 0 | G44: ='2. Property Characteristics'!G76 -> 0 | H44: 0 | I44: 0 | J44: 0 | K44: 0 | L44: 0
I45: 24 HOUR FIXTURES TOTAL SAVINGS | J45: =SUM(J24:J44) -> 0 | K45: 12 HOUR FIXTURES TOTAL SAVINGS | L45: =SUM(L24:L44) -> 0

Sheet Electric Load Opportunity (hidden)
A1: ELECTRIC LOAD OPPORTUNITIES
A2: Climate Zone | B2: =VLOOKUP('2. Property Characteristics'!C9,Values!D21:E39,2, FALSE) -> 
A3: Electric Utility | B3: ='2. Property Characteristics'!C18 -> SCE
A4: DHW Type | B4: ='2. Property Characteristics'!C36 -> 0
A5: DHW Fuel Type | B5: ='2. Property Characteristics'!C37 -> 0
A6: Space Heating Type | B6: ='2. Property Characteristics'!F36 -> 0
A7: Space Heating Fuel Type | B7: ='2. Property Characteristics'!F37 -> 0
A8: COMMON AREA
A9: Technology | B9: Existing Conditions | C9: Electric Load Opportunity | D9: Accepted? | E9: Quantity | F9: New Electric Consumption (kWh) | H9: Source/Notes
A10: Central Gas DHW to HWHP | B10: =IF(B4=Values!A11,'2. Property Characteristics'!C38,"No Central System") -> No Central System | C10: =IF(OR(B4=Values!A12,B5=Values!B12),Values!F24,"Central Heat Pump Water Heater") -> Central Heat Pump Water Heater | D10: ='3. Opportunities'!B31 -> No | E10: ='2. Property Characteristics'!C22 -> 0 | F10: =E10*1600 -> 0 | G10: 1600 kWh/apt | H10: Placeholder for now. Assumes 176 therms per apt and BTU conversion @ 2.58 COP
A11: Gas Pool Heater to HPWH | D11: ='3. Opportunities'!B32 -> No | F11: ='Pool Heater Load Calcs'!B22 ->  | G11: See pool heater calcs
B12: Quantity Proposed
A13: Add New EV Charging Station | B13: ='3. Opportunities'!B33 -> 0 | F13: =1825*B13 -> 0 | G13: 1825 kWh/station | H13: Based on typical usage per day for residential EV. Likely custom needed for MF
A14: Enter Estimated Added Total Owner Load(kWh) | F14: =IFERROR('3. Opportunities'!B35*1,0) -> 0
A15: TOTAL COMMON AREA NEW ElECTRIC LOAD (kWh) | C15: =SUM(F10:F13) -> 
A16: APT
A17: Technology | B17: Existing Conditions | C17: Electric Load Opportunity | D17: Accepted? | E17: Quantity | F17: New Electric Consumption (kWh)
A18: Gas DHW to HPHW | B18: =IF(B4=Values!A12,'2. Property Characteristics'!C38,"No In Unit System") -> No In Unit System | C18: HPHW | D18: ='3. Opportunities'!B22 -> No | E18: ='2. Property Characteristics'!C22 -> 0 | F18: =IF(D18="Yes",E18*814,0) -> 0 | G18: 814 kWh/apt | H18: PGECODHW106
A19: Space Heat Gas to HP | B19: =IF(B6=Values!A12,'2. Property Characteristics'!F38,"No In Unit System") -> No In Unit System | C19: Heat Pump Heaters | D19: ='3. Opportunities'!B23 -> No | E19: ='2. Property Characteristics'!C22 -> 0 | F19: =IF(D19="Yes",IF('2. Property Characteristics'!C39="No",'Electric Load Opportunity'!E19*522,'Electric Load Opportunity'!E19*198),0) -> 0 | G19: 522 kWh (if no AC existing); 198 kWh (if AC existing) | H19: https://www.energy.ca.gov/2010publications/CEC-200-2010-004/CEC-200-2010-004-V2.PDF
A20: Gas Cooking to Electric Cooking | B20: ='2. Property Characteristics'!F49 -> 0 | C20: =IF(B20=Values!P3, Values!F24, "Electric Induction") -> Electric Induction | D20: ='3. Opportunities'!B24 -> No | E20: ='2. Property Characteristics'!C22 -> 0 | F20: =IF(D20="Yes",E20*165,0) -> 0 | G20: 165 kWh per apt | H20: https://www.energy.ca.gov/2010publications/CEC-200-2010-004/CEC-200-2010-004-V2.PDF
A21: Gas Dryer to Heat Pump Dryer | B21: ='2. Property Characteristics'!F47 -> 0 | C21: =IF(B21=Values!P3, Values!F24, "Heat Pump Dryer") -> Heat Pump Dryer | D21: ='3. Opportunities'!B25 -> No | E21: ='2. Property Characteristics'!C22 -> 0 | F21: =IF(D21="Yes",E21*480,0) -> 0 | G21: 480 kWh per apt | H21: https://www.energy.ca.gov/2010publications/CEC-200-2010-004/CEC-200-2010-004-V2.PDF
A22: Add Continuous Ventilation | B22: N/A | C22: Continuous Ventilation | D22: ='3. Opportunities'!B26 -> No | E22: ='2. Property Characteristics'!C22 -> 0 | F22: =IF(D22="Yes",E22*350,0) -> 0 | G22: 350 kWh/apt | H22: Assumes 40W running 8760/year
A23: ='3. Opportunities'!C28 -> Enter Estimated Added Load per Apartment (kWh) | E23: ='2. Property Characteristics'!C22 -> 0 | F23: =IFERROR(E23*'3. Opportunities'!B28,0) -> 0
A24: TOTAL TENANT NEW ElECTRIC LOAD (kWh) | C24: =SUM(F18:F23) -> 0

Sheet Values (hidden)
A1: Contract Person Title | B1: Credentials | C1: Occupancy Type | D1: Wall Construction Type | E1: Nominal Wall Insulation R Value | F1: Wall Insulation Database | G1: Roof Construction Method | H1: Roof Insulation R Value | I1: Roof Insulation Database | J1: Glazing Type | K1: Glazing Database | L1: Window FRAME type | M1: Laundry | N1: Laundry Database | P1: Dryer Type | R1: Yes/No | S1: Pool Database | T1: Stove Type | U1: Stove Database
A2: Property Staff | B2: BPI Multifamily Building Analyst (MFBA) | C2: Senior | D2: Wood | E2: R-0 | F2: Wall Insulation (R0 to R11) | G2: Pitched | H2: R-0 | I2: Ceiling/Roof Insulation (R0 to R4) | J2: Single Pane | K2: Single Pane, u-factor = 1.19, and SHGC = 0.83 | L2: Wood | N2: Electric clothes dryers manufactured on or after May, 14th 1994 to January 1, 2015 | P2: Natural Gas | R2: Yes | S2: Single Speed Pool Pump | T2: Standard | U2: Standard Electric Stove- 65% efficient
A3: Solar Contractor | B3: California HERS Whole House Rater | C3: Families | D3: Brick | E3: R-11 | F3: Wall Insulation (R0 to R11) | G3: Flat Wood | H3: R-19 | I3: Ceiling/Roof Insulation (R19) | J3: Double Pane | K3: Energy Star Double Pane, u-factor = 0.32, and SHGC = 0.25 | L3: Vinyl | P3: Electricity | R3: No | S3: Two Speed Pool Pump | T3: Induction | U3: Induction Stove- 90% efficient
A4: Energy Efficiency Consultant | B4: RESNET Rater | C4: Mixed | D4: Concrete | E4: R-13 | F4: Wall Insulation (R13) | G4: Flat Concrete | H4: R-30 | I4: Ceiling/Roof Insulation (>=R30) | J4: Other | L4: Metal | P4: Propane | S4: Variable Speed Pool Pump
A5: Other | B5: GreenPoint Rater Existing Home Multifamily | C5: Supportive Housing | D5: Metal | E5: R-15 | F5: Wall Insulation (>=R14) | G5: Other | H5: R-38 | I5: Ceiling/Roof Insulation (>=R30) | L5: Other
B6: AEE Certified Energy Manager (CEM) | C6: Single Room Occupancy | D6: Other | E6: Other | F6: Wall Insulation (>=R14) | H6: Other
B7: ASHRAE (BCxP, BEAP, BEMP or HBDP) | C7: Other
B8: Professional Engineer (PE)
A10: System Type | B10: Fuel Type | C10: Central_Gas_DHW | D10: Central_Electric_DHW | E10: InUnit_Gas_DHW | F10: InUnit_Electric_DHW | G10: Central_Gas_Space_Heating | H10: Central_Electric_Space_Heating | I10: InUnit_Gas_Space_Heating | J10: InUnit_Electric_Space_Heating | K10: Central_Space_Cooling | L10: InUnit_Space_Cooling | M10: Pool Types | N10: Pool Open Months | O10: Common Area Lighting | P10: Lighting Type | Q10: Lighting Type Codes
A11: Central | B11: Natural Gas | C11: Non-Condensing Boiler | D11: Electric Resistance DHW | E11: Condensing Tankless DHW | F11: Electric Resistance DHW | G11: Hydronic Boiler with Radiators | H11: Electric Resistance Forced Air | I11: Gravity Wall Furnace | J11: Electric Resistance Wall Heater/Baseboard | K11: Chilled Water | L11: PTAC | M11: Gas heated | N11: Summer Only | O11: None | P11: Incandescent | Q11: Incandescent | R11: Incandescent | S11: CFL | T11: Linear Fluorescent | U11: High Intensity Discharge
A12: In-Unit | B12: Electricity | C12: Condensing Boiler | D12: Heat Pump DHW | E12: Non-Condensing Tankless DHW | F12: Heat Pump DHW | G12: Hydronic Fan Coil Served by Heating Boiler | H12: Ducted Split-System Heat Pump | I12: Direct Vent Wall Furnace | J12: Electric Resistance Forced Air | K12: Ducted Split-System AC | L12: PTHP | M12: Electric heated | N12: Full Year | O12: 24 Hour Corridor/Stairwell/Parking | P12: CFL | Q12: CFL | R12: 20-29W | S12: 5-14W | T12: 5-14W | U12: 20-29W
A13: None | B13: Propane | C13: Condensing Tankless DHW | D13: Other - Specify in Notes | E13: Condensing Tank DHW | F13: Other - Specify in Notes | G13: Hydronic Fan Coil Served by DHW | H13: Rooftop Packaged Heat Pump | I13: Condensing Forced Air Furnace | J13: PTHP | K13: Ducted Split-System Heat Pump | L13: Through Window AC | M13: Not heated or solar heated | O13: 12 Hour Exterior | P13: Linear Fluorescent | Q13: Fluorescent | R13: 30-49W | S13: 15-29W | T13: 15-29W | U13: 30-49W
B14: None | C14: Non-Condensing Tankless DHW | E14: Non-Condensing Tank DHW | G14: Steam Boiler | H14: Other - Specify in Notes | I14: Non-Condensing Forced Air Furnace | J14: Ducted Split-System Heat Pump | K14: Evaporative Cooler | L14: Ducted Split-System AC | P14: High Intensity Discharge | Q14: HID | R14: 50-69W | S14: 30-49W | T14: 30-49W | U14: 50-69W
C15: Other - Specify in Notes | E15: Other - Specify in Notes | G15: Other - Specify in Notes | I15: Rooftop Packaged Furnace | J15: Rooftop Packaged Heat Pump | K15: Other - Specify in Notes | L15: Rooftop Packaged AC | R15: 70-99W | S15: 50-69W | T15: 50-69W | U15: 70-99W
I16: Hydronic Fan Coil Served by DHW | J16: Minisplit Heat Pump | L16: Evaporative Cooler | R16: 100-149W | S16: 70-99W | T16: 70-99W | U16: 100-149W
I17: Other - Specify in Notes | J17: Other - Specify in Notes | L17: Ducted Split-System Heat Pump | R17: 150-249W | S17: ≥100W | T17: ≥100W | U17: 150-249W
L18: Rooftop Packaged Heat Pump | R18: 250-399W | U18: 250-399W
L19: Minisplit Heat Pump | R19: 400-599W | U19: 400-599W
L20: Other - Specify in Notes | R20: 600-1000W | U20: 600-1000W
A21: Electric Utility Provider | B21: Gas Utility Provider | C21: HVAC Type CEC | D21: Climate Zone | E21: Climate Zone | F21: Stock Language | G21: Quantity | H21: SEER Values | I21: Code Required Attic Insulation Level | J21: Refrigerators | K21: System Type Lookup | P21: Alert Language | R21: Lighting Wattage Buckets | S21: Wattage Used For Calc
A22: PG&E | B22: PG&E | C22: Elec SC and Gas SH | D22: 1 | E22: CZ01 | F22: Efficiency Upgrade Not Assumed | G22: 0 | H22: 8 | I22: =$H$5 -> R-38 | J22: Original Refrigerators | K22: =_xlfn.IFNA(INDEX(L22:O24,MATCH('2. Property Characteristics'!C36,Values!L22:L24,0),MATCH('2. Property Characteristics'!C37,Values!L22:O22,0)),"") ->  | L22: DHW | M22: Natural Gas | N22: Electricity | O22: Propane | P22: ALERT: If the common area energy efficiency opportunities identified in this tool are installed, the system may be over allocating PV kWh offsets to owner meters and could risk having unusable PV credits, as the allocation split between owner and tenant meters will be fixed for 20 years. Excess capacity will not be incentivized. | R22: 5-14W | S22: 5
A23: SCE | B23: SCG | C23: Gas SH | D23: 2 | E23: CZ02 | F23: Gas/Propane system, please refer to Electric Load Opportunities. | G23: 1 | H23: 8.9 | I23: =$H$4 -> R-30 | J23: Newer Refrigerators | K23: =_xlfn.IFNA(INDEX(L25:O27,MATCH('2. Property Characteristics'!F36,Values!L25:L27,0),MATCH('2. Property Characteristics'!F37,Values!L25:O25,0)),"") ->  | L23: Central | M23: =C10 -> Central_Gas_DHW | N23: =D10 -> Central_Electric_DHW | O23: =C10 -> Central_Gas_DHW | P23: ALERT: If the tenant energy efficiency opportunities identified in this tool are installed, you may be over allocating PV kWh offsets to tenant meters. Excess capacity will not be incentivized. | R23: 15-29W | S23: 15
A24: SDG&E | B24: SDG&E | C24: Gas WH | D24: 3 | E24: CZ03 | F24: Not ESA Eligible, please refer to other energy efficiency programs. | G24: 2 | H24: 9.7 | J24: Energy Star Rated Refrigerators | K24: =IF('2. Property Characteristics'!C40=Values!A11,Values!K10,Values!L10) -> InUnit_Space_Cooling | L24: In-Unit | M24: =E10 -> InUnit_Gas_DHW | N24: =F10 -> InUnit_Electric_DHW | O24: =E10 -> InUnit_Gas_DHW | R24: 30-49W | S24: 30
A25: Liberty | B25: Other | C25: Elec WH | D25: 4 | E25: CZ04 | G25: 3 | H25: 11 | J25: 469 kWh/yr | L25: Space Heating | M25: Natural Gas | N25: Electricity | O25: Propane | P25: ALERT: The property will be required to provide evidence at the Incentive Claim Milestone that the electric load addition is being pursued. Otherwise the SOMAH incentives may be reduced. | R25: 50-69W | S25: 50
A26: PacifiCorp | B26: Propane | D26: 5 | E26: CZ05 | G26: 4 | H26: 13 | J26: 399 kWh/yr | L26: Central | M26: =G10 -> Central_Gas_Space_Heating | N26: =H10 -> Central_Electric_Space_Heating | O26: =G10 -> Central_Gas_Space_Heating | P26: I am aware that the SOMAH program can help identify and provide referral assistance for additional energy efficiency and electrification programs and understand that I can request such support via calsomah.org. | R26: 70-99W | S26: 70
D27: 6 | E27: CZ06 | G27: 5 | H27: 14+ | L27: In-Unit | M27: =I10 -> InUnit_Gas_Space_Heating | N27: =J10 -> InUnit_Electric_Space_Heating | O27: =I10 -> InUnit_Gas_Space_Heating | P27: The proposed PV size is under the SOMAH system cap | R27: ≥100W | S27: 100
D28: 7 | E28: CZ07 | G28: 6 | R28: 20-29W | S28: 20
D29: 8 | E29: CZ08 | G29: 7 | R29: 30-49W | S29: 30
D30: 7 | E30: CZ07 | G30: 6 | R30: 50-69W | S30: 50
D31: 8 | E31: CZ08 | G31: 7 | R31: 70-99W | S31: 70
D32: 9 | E32: CZ09 | G32: 8 | R32: 100-149W | S32: 100
D33: 10 | E33: CZ10 | G33: 9 | R33: 150-249W | S33: 150
D34: 11 | E34: CZ11 | G34: 10 | R34: 250-399W | S34: 250
D35: 12 | E35: CZ12 | G35: 11 | R35: 400-599W | S35: 400
D36: 13 | E36: CZ13 | G36: 12 | R36: 600-1000W | S36: 600
D37: 14 | E37: CZ14 | G37: 13
D38: 15 | E38: CZ15 | G38: 14
D39: 16 | E39: CZ16 | G39: 15
G40: 16
G41: 17
G42: 18
G43: 19
G44: 20

Sheet Picklists (hidden)
A1: Year Built | B1: Number of Buildings | C1: Number of Floors
A2: 2022 | B2: 1 | C2: 1
A3: =A2-1 -> 2021 | B3: =B2+1 -> 2 | C3: =C2+1 -> 2
A4: =A3-1 -> 2020 | B4: =B3+1 -> 3 | C4: 3
A5: 2019 | B5: 4 | C5: 4
A6: 2018 | B6: 5 | C6: 5
A7: 2017 | B7: 6 | C7: 6
A8: 2016 | B8: 7 | C8: 7
A9: 2015 | B9: 8 | C9: 8
A10: 2014 | B10: 9 | C10: 9
A11: 2013 | B11: 10 | C11: 10
A12: 2012 | B12: 11 | C12: 11
A13: 2011 | B13: 12 | C13: 12
A14: 2010 | B14: 13 | C14: 13
A15: 2009 | B15: 14 | C15: 14
A16: 2008 | B16: 15 | C16: 15
A17: 2007 | B17: 16 | C17: 16
A18: 2006 | B18: 17 | C18: 17
A19: 2005 | B19: 18 | C19: 18
A20: 2004 | B20: 19 | C20: 19
A21: 2003 | B21: 20 | C21: 20
A22: 2002 | B22: 21 | C22: 21
A23: 2001 | B23: 22 | C23: 22
A24: 2000 | B24: 23 | C24: 23
A25: 1999 | B25: 24 | C25: 24
A26: 1998 | B26: 25 | C26: 25
A27: 1997 | B27: 26 | C27: 26
A28: 1996 | B28: 27 | C28: 27
A29: 1995 | B29: 28 | C29: 28
A30: 1994 | B30: 29 | C30: 29
A31: 1993 | B31: 30 | C31: 30
A32: 1992 | B32: 31 | C32: 31
A33: 1991 | B33: 32 | C33: 32
A34: 1990 | B34: 33 | C34: 33
A35: 1989 | B35: 34 | C35: 34
A36: 1988 | B36: 35 | C36: 35
A37: 1987 | B37: 36 | C37: 36
A38: 1986 | B38: 37 | C38: 37
A39: 1985 | B39: 38 | C39: 38
A40: 1984 | B40: 39 | C40: 39
A41: 1983 | B41: 40 | C41: 40
A42: 1982 | B42: 41 | C42: 41
A43: 1981 | B43: 42 | C43: 42
A44: 1980 | B44: 43 | C44: 43
A45: 1979 | B45: 44 | C45: 44
A46: 1978 | B46: 45 | C46: 45
A47: 1977 | B47: 46 | C47: 46
A48: 1976 | B48: 47 | C48: 47
A49: 1975 | B49: 48 | C49: 48
A50: 1974 | B50: 49 | C50: 49
A51: 1973 | B51: 50 | C51: 50
A52: 1972 | B52: 51 | C52: 51
A53: 1971 | B53: 52 | C53: 52
A54: 1970 | B54: 53 | C54: 53
A55: 1969 | B55: 54 | C55: 54
A56: 1968 | B56: 55 | C56: 55
A57: 1967 | B57: 56 | C57: 56
A58: 1966 | B58: 57 | C58: 57
A59: 1965 | B59: 58 | C59: 58
A60: 1964 | B60: 59 | C60: 59
A61: 1963 | B61: 60 | C61: 60
A62: 1962 | B62: 61 | C62: 61
A63: 1961 | B63: 62 | C63: 62
A64: 1960 | B64: 63 | C64: 63
A65: 1959 | B65: 64 | C65: 64
A66: 1958 | B66: 65 | C66: 65
A67: 1957 | B67: 66 | C67: 66
A68: =A67-1 -> 1956 | B68: =B67+1 -> 67 | C68: 67
A69: 1955 | B69: 68 | C69: 68
A70: 1954 | B70: 69 | C70: 69
A71: 1953 | B71: 70 | C71: 70
A72: 1952 | B72: 71 | C72: 71
A73: 1951 | B73: 72 | C73: 72
A74: 1950 | B74: 73 | C74: 73
A75: 1949 | B75: 74 | C75: 74
A76: 1948 | B76: 75 | C76: 75
A77: 1947 | B77: 76 | C77: 76
A78: 1946 | B78: 77 | C78: 77
A79: 1945 | B79: 78 | C79: 78
A80: 1944 | B80: 79 | C80: 79
A81: 1943 | B81: 80 | C81: 80
A82: 1942 | B82: 81 | C82: 81
A83: 1941 | B83: 82 | C83: 82
A84: 1940 | B84: 83 | C84: 83
A85: 1939 | B85: 84 | C85: 84
A86: 1938 | B86: 85 | C86: 85
A87: 1937 | B87: 86 | C87: 86
A88: 1936 | B88: 87 | C88: 87
A89: 1935 | B89: 88 | C89: 88
A90: 1934 | B90: 89 | C90: 89
A91: 1933 | B91: 90 | C91: 90
A92: 1932 | B92: 91 | C92: 91
A93: 1931 | B93: 92 | C93: 92
A94: 1930 | B94: 93 | C94: 93
A95: 1929 | B95: 94 | C95: 94
A96: 1928 | B96: 95 | C96: 95
A97: 1927 | B97: 96 | C97: 96
A98: 1926 | B98: 97 | C98: 97
A99: 1925 | B99: 98 | C99: 98
A100: 1924 | B100: 99 | C100: 99
A101: 1923 | B101: =B100+1 -> 100 | C101: =C100+1 -> 100
A102: 1922
A103: 1921
A104: 1920
A105: 1919
A106: 1918
A107: 1917
A108: 1916
A109: 1915
A110: 1914
A111: 1913
A112: 1912
A113: 1911
A114: 1910
A115: 1909
A116: 1908
A117: 1907
A118: 1906
A119: 1905
A120: 1904
A121: 1903
A122: 1902
A123: 1901
A124: 1900

Sheet DEER Energy Savings (hidden)
A3: Measure Type | B3: IOUname | C3: Measure Description | D3: EnergyImpactID | E3: kWh | F3: kW | G3: therm | H3: Version | I3: BldgType | J3: BldgVint | K3: BldgHVAC | L3: BldgLoc | M3: NormUnit | N3: NumUnit
A4: Cooling System Type | B4: SCE | C4: High Efficiency AC/Heat Pump | D4: RE-HV-ResAC-45to65kBtuh-15S | E4: 159 | F4: 0.0939 | G4: -0.367 | H4: DEER2014 | I4: MFm | J4: Ex | K4: rDXGF | L4: CZ13 | M4: Cap-Tons | N4: 1.64
A5: Cooling System Type | B5: SCE | C5: High Efficiency AC/Heat Pump | D5: RE-HV-ResAC-45to65kBtuh-15S | E5: 189 | F5: 0.167 | G5: -0.285 | H5: DEER2014 | I5: MFm | J5: Ex | K5: rDXGF | L5: CZ14 | M5: Cap-Tons | N5: 2.34
A6: Cooling System Type | B6: SCE | C6: High Efficiency AC/Heat Pump | D6: RE-HV-ResAC-45to65kBtuh-15S | E6: 296 | F6: 0.154 | G6: -0.139 | H6: DEER2014 | I6: MFm | J6: Ex | K6: rDXGF | L6: CZ15 | M6: Cap-Tons | N6: 2.42
A7: Cooling System Type | B7: SCE | C7: Not ESA Eligible, please refer to other energy efficiency programs. | D7: Not ESA Eligible, please refer to other energy efficiency programs. | E7: 0 | L7: CZ16
A8: Cooling System Type | B8: SCE | C8: Not ESA Eligible, please refer to other energy efficiency programs. | D8: Not ESA Eligible, please refer to other energy efficiency programs. | E8: 0 | L8: CZ01
A9: Cooling System Type | B9: SCE | C9: Not ESA Eligible, please refer to other energy efficiency programs. | D9: Not ESA Eligible, please refer to other energy efficiency programs. | E9: 0 | L9: CZ02
A10: Cooling System Type | B10: SCE | C10: Not ESA Eligible, please refer to other energy efficiency programs. | D10: Not ESA Eligible, please refer to other energy efficiency programs. | E10: 0 | L10: CZ03
A11: Cooling System Type | B11: SCE | C11: Not ESA Eligible, please refer to other energy efficiency programs. | D11: Not ESA Eligible, please refer to other energy efficiency programs. | E11: 0 | L11: CZ04
A12: Cooling System Type | B12: SCE | C12: Not ESA Eligible, please refer to other energy efficiency programs. | D12: Not ESA Eligible, please refer to other energy efficiency programs. | E12: 0 | L12: CZ05
A13: Cooling System Type | B13: SCE | C13: Not ESA Eligible, please refer to other energy efficiency programs. | D13: Not ESA Eligible, please refer to other energy efficiency programs. | E13: 0 | L13: CZ06
A14: Cooling System Type | B14: SCE | C14: Not ESA Eligible, please refer to other energy efficiency programs. | D14: Not ESA Eligible, please refer to other energy efficiency programs. | E14: 0 | L14: CZ07
A15: Cooling System Type | B15: SCE | C15: Not ESA Eligible, please refer to other energy efficiency programs. | D15: Not ESA Eligible, please refer to other energy efficiency programs. | E15: 0 | L15: CZ08
A16: Cooling System Type | B16: SCE | C16: Not ESA Eligible, please refer to other energy efficiency programs. | D16: Not ESA Eligible, please refer to other energy efficiency programs. | E16: 0 | L16: CZ09
A17: Cooling System Type | B17: SCE | C17: Not ESA Eligible, please refer to other energy efficiency programs. | D17: Not ESA Eligible, please refer to other energy efficiency programs. | E17: 0 | L17: CZ10
A18: Cooling System Type | B18: PG&E | C18: Not ESA Eligible, please refer to other energy efficiency programs. | D18: Not ESA Eligible, please refer to other energy efficiency programs. | E18: 0
A19: Cooling System Type | B19: SDG&E | C19: Not ESA Eligible, please refer to other energy efficiency programs. | D19: Not ESA Eligible, please refer to other energy efficiency programs. | E19: 0
A20: Heating System Type | B20: SCE | C20: Not ESA Eligible, please refer to other energy efficiency programs. | D20: Not ESA Eligible, please refer to other energy efficiency programs. | E20: 0 | F20: 0 | G20: 0 | L20: CZ01
A21: Heating System Type | B21: SCE | C21: Not ESA Eligible, please refer to other energy efficiency programs. | D21: Not ESA Eligible, please refer to other energy efficiency programs. | E21: 0 | F21: 0 | G21: 0 | L21: CZ02
A22: Heating System Type | B22: SCE | C22: Not ESA Eligible, please refer to other energy efficiency programs. | D22: Not ESA Eligible, please refer to other energy efficiency programs. | E22: 0 | F22: 0 | G22: 0 | L22: CZ03
A23: Heating System Type | B23: SCE | C23: Not ESA Eligible, please refer to other energy efficiency programs. | D23: Not ESA Eligible, please refer to other energy efficiency programs. | E23: 0 | F23: 0 | G23: 0 | L23: CZ04
A24: Heating System Type | B24: SCE | C24: Not ESA Eligible, please refer to other energy efficiency programs. | D24: Not ESA Eligible, please refer to other energy efficiency programs. | E24: 0 | F24: 0 | G24: 0 | L24: CZ05 | O24: Exclude cooling savings
A25: Heating System Type | B25: SCE | C25: Not ESA Eligible, please refer to other energy efficiency programs. | D25: Not ESA Eligible, please refer to other energy efficiency programs. | E25: 0 | F25: 0 | G25: 0 | L25: CZ06 | O25: Exclude cooling savings
A26: Heating System Type | B26: SCE | C26: Not ESA Eligible, please refer to other energy efficiency programs. | D26: Not ESA Eligible, please refer to other energy efficiency programs. | E26: 0 | F26: 0 | G26: 0 | L26: CZ07
A27: Heating System Type | B27: SCE | C27: Not ESA Eligible, please refer to other energy efficiency programs. | D27: Not ESA Eligible, please refer to other energy efficiency programs. | E27: 0 | F27: 0 | G27: 0 | L27: CZ08 | O27: Exclude cooling savings
A28: Heating System Type | B28: SCE | C28: Not ESA Eligible, please refer to other energy efficiency programs. | D28: Not ESA Eligible, please refer to other energy efficiency programs. | E28: 0 | F28: 0 | G28: 0 | L28: CZ09 | O28: Exclude cooling savings
A29: Heating System Type | B29: SCE | C29: Not ESA Eligible, please refer to other energy efficiency programs. | D29: Not ESA Eligible, please refer to other energy efficiency programs. | E29: 0 | F29: 0 | G29: 0 | L29: CZ10 | O29: Exclude cooling savings
A30: Heating System Type | B30: SCE | C30: Not ESA Eligible, please refer to other energy efficiency programs. | D30: Not ESA Eligible, please refer to other energy efficiency programs. | E30: 0 | F30: 0 | G30: 0 | L30: CZ11
A31: Heating System Type | B31: SCE | C31: Not ESA Eligible, please refer to other energy efficiency programs. | D31: Not ESA Eligible, please refer to other energy efficiency programs. | E31: 0 | F31: 0 | G31: 0 | L31: CZ12
A32: Heating System Type | B32: SCE | C32: High Efficiency Heat Pump | D32: RE-HV-ResHP-15p0S-8p7H | E32: =300-E4 -> 141 | F32: =0.126-F4 -> 0.0321 | G32: 0 | H32: DEER2014 | I32: MFm | J32: Ex | K32: rDXHP | L32: CZ13 | M32: Cap-Tons | N32: 1.64 | O32: Exclude cooling savings
A33: Heating System Type | B33: SCE | C33: High Efficiency Heat Pump | D33: RE-HV-ResHP-15p0S-8p7H | E33: =335-E5 -> 146 | F33: =0.241-F5 -> 0.074 | G33: 0 | H33: DEER2014 | I33: MFm | J33: Ex | K33: rDXHP | L33: CZ14 | M33: Cap-Tons | N33: 2.34 | O33: Exclude cooling savings
A34: Heating System Type | B34: SCE | C34: High Efficiency Heat Pump | D34: RE-HV-ResHP-15p0S-8p7H | E34: =457-E6 -> 161 | F34: =0.224-F6 -> 0.07 | G34: 0 | H34: DEER2014 | I34: MFm | J34: Ex | K34: rDXHP | L34: CZ15 | M34: Cap-Tons | N34: 2.42 | O34: Exclude cooling savings
A35: Heating System Type | B35: SCE | C35: Not ESA Eligible, please refer to other energy efficiency programs. | D35: Not ESA Eligible, please refer to other energy efficiency programs. | E35: 0 | F35: 0 | G35: 0 | H35: DEER2014 | I35: MFm | J35: Ex | K35: rDXHP | L35: CZ16 | M35: Cap-Tons | N35: 2.42 | O35: Exclude cooling savings
A36: Heating System Type | B36: PG&E | C36: Not ESA Eligible, please refer to other energy efficiency programs. | D36: Not ESA Eligible, please refer to other energy efficiency programs. | E36: 0
A37: Heating System Type | B37: SDG&E | C37: Not ESA Eligible, please refer to other energy efficiency programs. | D37: Not ESA Eligible, please refer to other energy efficiency programs. | E37: 0
A38: Roof Insulation | B38: PG&E | C38: R-38 | D38: RB-BS-CeilIns-R0-R38 | E38: 0.889 | F38: 0 | G38: 0.22 | H38: DEER2017 | I38: MFm | J38: Ex | K38: rWtd | L38: CZ01 | M38: Area-ft2 | N38: 535
A39: Roof Insulation | B39: PG&E | C39: R-30 | D39: RB-BS-CeilIns-R0-R30 | E39: 0.547 | F39: 0.000221 | G39: 0.149 | H39: DEER2017 | I39: MFm | J39: Ex | K39: rWtd | L39: CZ02 | M39: Area-ft2 | N39: 474
A40: Roof Insulation | B40: PG&E | C40: R-30 | D40: RB-BS-CeilIns-R0-R30 | E40: 0.596 | F40: 2.4e-05 | G40: 0.152 | H40: DEER2017 | I40: MFm | J40: Ex | K40: rWtd | L40: CZ03 | M40: Area-ft2 | N40: 474
A41: Roof Insulation | B41: PG&E | C41: R-30 | D41: RB-BS-CeilIns-R0-R30 | E41: 0.467 | F41: 0.000139 | G41: 0.129 | H41: DEER2017 | I41: MFm | J41: Ex | K41: rWtd | L41: CZ04 | M41: Area-ft2 | N41: 474
A42: Roof Insulation | B42: PG&E | C42: R-30 | D42: RB-BS-CeilIns-R0-R30 | E42: 0.645 | F42: 5.84e-06 | G42: 0.19 | H42: DEER2017 | I42: MFm | J42: Ex | K42: rWtd | L42: CZ05 | M42: Area-ft2 | N42: 474
A43: Roof Insulation | B43: PG&E | C43: R-30 | D43: RB-BS-CeilIns-R0-R30 | E43: 0.601 | F43: 0.000233 | G43: 0.15 | H43: DEER2017 | I43: MFm | J43: Ex | K43: rWtd | L43: IOU | M43: Area-ft2 | N43: 474
A44: Roof Insulation | B44: PG&E | C44: R-38 | D44: RB-BS-CeilIns-R0-R38 | E44: 0.739 | F44: 0.000742 | G44: 0.147 | H44: DEER2017 | I44: MFm | J44: Ex | K44: rWtd | L44: CZ11 | M44: Area-ft2 | N44: 549
A45: Roof Insulation | B45: PG&E | C45: R-38 | D45: RB-BS-CeilIns-R0-R38 | E45: 0.588 | F45: 0.00049 | G45: 0.177 | H45: DEER2017 | I45: MFm | J45: Ex | K45: rWtd | L45: CZ12 | M45: Area-ft2 | N45: 549
A46: Roof Insulation | B46: PG&E | C46: R-38 | D46: RB-BS-CeilIns-R0-R38 | E46: 0.962 | F46: 0.000891 | G46: 0.129 | H46: DEER2017 | I46: MFm | J46: Ex | K46: rWtd | L46: CZ13 | M46: Area-ft2 | N46: 549
A47: Roof Insulation | B47: PG&E | C47: R-38 | D47: RB-BS-CeilIns-R0-R38 | E47: 0.685 | F47: 0.000386 | G47: 0.217 | H47: DEER2017 | I47: MFm | J47: Ex | K47: rWtd | L47: CZ16 | M47: Area-ft2 | N47: 535
A48: Roof Insulation | B48: PG&E | C48: R-38 | D48: RB-BS-CeilIns-R0-R38 | E48: 0.619 | F48: 0.00024 | G48: 0.156 | H48: DEER2017 | I48: MFm | J48: Ex | K48: rWtd | L48: IOU | M48: Area-ft2 | N48: 535
A49: Roof Insulation | B49: SCE | C49: R-30 | D49: RB-BS-CeilIns-R0-R30 | E49: 0.152 | F49: 0 | G49: 0.217 | H49: DEER2017 | I49: MFm | J49: Ex | K49: rWtd | L49: CZ05 | M49: Area-ft2 | N49: 474
A50: Roof Insulation | B50: SCE | C50: R-30 | D50: RB-BS-CeilIns-R0-R30 | E50: 0.373 | F50: 0.00016 | G50: 0.106 | H50: DEER2017 | I50: MFm | J50: Ex | K50: rWtd | L50: CZ06 | M50: Area-ft2 | N50: 465
A51: Roof Insulation | B51: SCE | C51: R-30 | D51: RB-BS-CeilIns-R0-R30 | E51: 0.342 | F51: 0.000251 | G51: 0.0887 | H51: DEER2017 | I51: MFm | J51: Ex | K51: rWtd | L51: CZ08 | M51: Area-ft2 | N51: 465
A52: Roof Insulation | B52: SCE | C52: R-30 | D52: RB-BS-CeilIns-R0-R30 | E52: 0.453 | F52: 0.000481 | G52: 0.106 | H52: DEER2017 | I52: MFm | J52: Ex | K52: rWtd | L52: CZ09 | M52: Area-ft2 | N52: 544
A53: Roof Insulation | B53: SCE | C53: R-30 | D53: RB-BS-CeilIns-R0-R30 | E53: 0.543 | F53: 0.000807 | G53: 0.104 | H53: DEER2017 | I53: MFm | J53: Ex | K53: rWtd | L53: CZ10 | M53: Area-ft2 | N53: 544
A54: Roof Insulation | B54: SCE | C54: R-30 | D54: RB-BS-CeilIns-R0-R30 | E54: 0.465 | F54: 0.00036 | G54: 0.102 | H54: DEER2017 | I54: MFm | J54: Ex | K54: rWtd | L54: IOU | M54: Area-ft2 | N54: 544
A55: Roof Insulation | B55: SCE | C55: R-38 | D55: RB-BS-CeilIns-R0-R38 | E55: 0.934 | F55: 0.000834 | G55: 0.129 | H55: DEER2017 | I55: MFm | J55: Ex | K55: rWtd | L55: CZ13 | M55: Area-ft2 | N55: 549
A56: Roof Insulation | B56: SCE | C56: R-38 | D56: RB-BS-CeilIns-R0-R38 | E56: 0.983 | F56: 0.000796 | G56: 0.17 | H56: DEER2017 | I56: MFm | J56: Ex | K56: rWtd | L56: CZ14 | M56: Area-ft2 | N56: 705
A57: Roof Insulation | B57: SCE | C57: R-38 | D57: RB-BS-CeilIns-R0-R38 | E57: 1.4 | F57: 0.000927 | G57: 0.0577 | H57: DEER2017 | I57: MFm | J57: Ex | K57: rWtd | L57: CZ15 | M57: Area-ft2 | N57: 705
A58: Roof Insulation | B58: SCE | C58: R-38 | D58: RB-BS-CeilIns-R0-R38 | E58: 0.673 | F58: 0.000408 | G58: 0.217 | H58: DEER2017 | I58: MFm | J58: Ex | K58: rWtd | L58: CZ16 | M58: Area-ft2 | N58: 535
A59: Roof Insulation | B59: SCE | C59: R-38 | D59: RB-BS-CeilIns-R0-R38 | E59: 0.476 | F59: 0.000371 | G59: 0.106 | H59: DEER2017 | I59: MFm | J59: Ex | K59: rWtd | L59: IOU | M59: Area-ft2 | N59: 563
A60: Roof Insulation | B60: SDG&E | C60: R-38 | D60: RB-BS-CeilIns-R0-R38 | E60: 0.983 | F60: 0.000796 | G60: 0.17 | H60: DEER2017 | I60: MFm | J60: Ex | K60: rWtd | L60: CZ14 | M60: Area-ft2 | N60: 705
A61: Roof Insulation | B61: SDG&E | C61: R-38 | D61: RB-BS-CeilIns-R0-R38 | E61: 1.41 | F61: 0.000938 | G61: 0.0577 | H61: DEER2017 | I61: MFm | J61: Ex | K61: rWtd | L61: CZ15 | M61: Area-ft2 | N61: 705
A62: Roof Insulation | B62: SDG&E | C62: R-38 | D62: RB-BS-CeilIns-R0-R38 | E62: 0.321 | F62: 0.000253 | G62: 0.0881 | H62: DEER2017 | I62: MFm | J62: Ex | K62: rWtd | L62: IOU | M62: Area-ft2 | N62: 705
A63: Roof Insulation | B63: SDG&E | C63: R-30 | D63: RB-BS-CeilIns-R0-R30 | E63: 0.368 | F63: 0.000186 | G63: 0.106 | H63: DEER2017 | I63: MFm | J63: Ex | K63: rWtd | L63: CZ06 | M63: Area-ft2 | N63: 523
A64: Roof Insulation | B64: SDG&E | C64: R-30 | D64: RB-BS-CeilIns-R0-R30 | E64: 0.242 | F64: 0.000105 | G64: 0.0784 | H64: DEER2017 | I64: MFm | J64: Ex | K64: rWtd | L64: CZ07 | M64: Area-ft2 | N64: 523
A65: Roof Insulation | B65: SDG&E | C65: R-30 | D65: RB-BS-CeilIns-R0-R30 | E65: 0.342 | F65: 0.000335 | G65: 0.0886 | H65: DEER2017 | I65: MFm | J65: Ex | K65: rWtd | L65: CZ08 | M65: Area-ft2 | N65: 523
A66: Roof Insulation | B66: SDG&E | C66: R-30 | D66: RB-BS-CeilIns-R0-R30 | E66: 0.529 | F66: 0.000714 | G66: 0.104 | H66: DEER2017 | I66: MFm | J66: Ex | K66: rWtd | L66: CZ10 | M66: Area-ft2 | N66: 608
A67: Roof Insulation | B67: SDG&E | C67: R-30 | D67: RB-BS-CeilIns-R0-R30 | E67: 0.313 | F67: 0.000245 | G67: 0.0856 | H67: DEER2017 | I67: MFm | J67: Ex | K67: rWtd | L67: IOU | M67: Area-ft2 | N67: 704
A68: DHW Type | B68: SDG&E | C68: Heat Pump Water Heater | D68: RE-WtrHt-SmlStrg-HP-lte12kW-rep50G-3p24EF | E68: 1660 | F68: 0.182 | G68: 0 | H68: DEER2017 | I68: MFm | J68: Ex | K68: Any | L68: IOU | M68: Each | N68: 1
A69: DHW Type | B69: PG&E | C69: Not ESA Eligible, please refer to other energy efficiency programs. | D69: Not ESA Eligible, please refer to other energy efficiency programs. | E69: 0 | F69: 0 | G69: 0
A70: DHW Type | B70: SCE | C70: Not ESA Eligible, please refer to other energy efficiency programs. | D70: Not ESA Eligible, please refer to other energy efficiency programs. | E70: 0 | F70: 0 | G70: 0
A71: Refrigerators | B71: PG&E | C71: Energy Star Rated Refrigerators | D71: Res-Refg-dKWH-Cond | E71: 61.9 | F71: 0.00976 | G71: -1.74 | H71: DEER2014 | I71: MFm | J71: Ex | K71: rWtd | L71: IOU | M71: Each | N71: 400
A72: Refrigerators | B72: SCE | C72: Energy Star Rated Refrigerators | D72: Res-Refg-dKWH-Cond | E72: 69.1 | F72: 0.0116 | G72: -1.25 | H72: DEER2014 | I72: MFm | J72: Ex | K72: rWtd | L72: IOU | M72: Each | N72: 400
A73: Refrigerators | B73: SDG&E | C73: Energy Star Rated Refrigerators | D73: Res-Refg-dKWH-Cond | E73: 66.6 | F73: 0.0106 | G73: -1.01 | H73: DEER2014 | I73: MFm | J73: Ex | K73: rWtd | L73: IOU | M73: Each | N73: 400

Sheet Pool Heater Load Calcs (hidden)
B1: Pool Heating Load Calcs
A2: Pool Supply Water Temp | B2: 78 | C2: F | D2: Pool Type | E2: ='2. Property Characteristics'!C46 -> 0
A3: SPA Supply Water Temp | B3: 98 | C3: F | D3: Spa Type | E3: ='2. Property Characteristics'!C47 -> 0
A4: Pool Size | B4: =IF(E2=K11,'2. Property Characteristics'!C48,0) -> 0 | C4: sqft
A5: Spa Size | B5: =IF(E3=K11,'2. Property Characteristics'!C49,0) -> 0 | C5: sqft
A6: Climate Zone | B6: ='2. Property Characteristics'!C9 -> Enter Zip Code Above
A7: Assumed Operating Month | B7: =J8 -> Summer Only | J7: Full Year | K7: All 12 months
F8: Average Ambient Temp | J8: Summer Only | K8: May-Oct
A9: Monthly Load | B9: January | C9: =IF($B$2-F9>=0,5*24*30*(($B$2-F9)*$B$4+($B$3-F9)*$B$5),0) ->  | D9: BTU/month | F9: =INDEX('Weather Data'!$B$4:$R$15,MATCH(B9,'Weather Data'!$B$4:$B$15,0),MATCH($B$6,'Weather Data'!$B$3:$R$3,0)) -> 
B10: February | C10: =IF($B$2-F10>=0,5*24*30*(($B$2-F10)*$B$4+($B$3-F10)*$B$5),0) ->  | D10: BTU/month | F10: =INDEX('Weather Data'!$B$4:$R$15,MATCH(B10,'Weather Data'!$B$4:$B$15,0),MATCH($B$6,'Weather Data'!$B$3:$R$3,0)) ->  | K10: Pool Types
B11: March | D11: BTU/month | F11: =INDEX('Weather Data'!$B$4:$R$15,MATCH(B11,'Weather Data'!$B$4:$B$15,0),MATCH($B$6,'Weather Data'!$B$3:$R$3,0)) ->  | K11: Gas heated
B12: April | D12: BTU/month | F12: =INDEX('Weather Data'!$B$4:$R$15,MATCH(B12,'Weather Data'!$B$4:$B$15,0),MATCH($B$6,'Weather Data'!$B$3:$R$3,0)) ->  | K12: Electric heated
B13: May | D13: BTU/month | F13: =INDEX('Weather Data'!$B$4:$R$15,MATCH(B13,'Weather Data'!$B$4:$B$15,0),MATCH($B$6,'Weather Data'!$B$3:$R$3,0)) ->  | K13: Not heated or solar heated
B14: June | D14: BTU/month | F14: =INDEX('Weather Data'!$B$4:$R$15,MATCH(B14,'Weather Data'!$B$4:$B$15,0),MATCH($B$6,'Weather Data'!$B$3:$R$3,0)) -> 
B15: July | D15: BTU/month | F15: =INDEX('Weather Data'!$B$4:$R$15,MATCH(B15,'Weather Data'!$B$4:$B$15,0),MATCH($B$6,'Weather Data'!$B$3:$R$3,0)) -> 
B16: August | D16: BTU/month | F16: =INDEX('Weather Data'!$B$4:$R$15,MATCH(B16,'Weather Data'!$B$4:$B$15,0),MATCH($B$6,'Weather Data'!$B$3:$R$3,0)) -> 
B17: September | D17: BTU/month | F17: =INDEX('Weather Data'!$B$4:$R$15,MATCH(B17,'Weather Data'!$B$4:$B$15,0),MATCH($B$6,'Weather Data'!$B$3:$R$3,0)) -> 
B18: October | D18: BTU/month | F18: =INDEX('Weather Data'!$B$4:$R$15,MATCH(B18,'Weather Data'!$B$4:$B$15,0),MATCH($B$6,'Weather Data'!$B$3:$R$3,0)) -> 
B19: November | D19: BTU/month | F19: =INDEX('Weather Data'!$B$4:$R$15,MATCH(B19,'Weather Data'!$B$4:$B$15,0),MATCH($B$6,'Weather Data'!$B$3:$R$3,0)) -> 
B20: December | D20: BTU/month | F20: =INDEX('Weather Data'!$B$4:$R$15,MATCH(B20,'Weather Data'!$B$4:$B$15,0),MATCH($B$6,'Weather Data'!$B$3:$R$3,0)) -> 
A21: Existing Annual Load | B21: =IF(B7=J7,SUM(C9:C20),SUM(C13:C18)) ->  | C21: BTU/yr
A22: New Electricity Load | B22: =B21/3412/5.7 ->  | C22: kWh

Sheet Weather Data (hidden)
B1: Average Monthly Temperature by Climate Zones (F)
C2: Sources: TMY3 Data from representative city from each climate zone
B3: Climate Zone | C3: 1 | D3: 2 | E3: 3 | F3: 4 | G3: 5 | H3: 6 | I3: 7 | J3: 8 | K3: 9 | L3: 10 | M3: 11 | N3: 12 | O3: 13 | P3: 14 | Q3: 15 | R3: 16
B4: January | C4: 46.95137097 | D4: 47.12604839 | E4: 51.97395161 | F4: 48.74774194 | G4: 50.59806452 | H4: 56.71951613 | I4: 57.22129032 | J4: 56.13693548 | K4: 55.23741935 | L4: 54.71096774 | M4: 44.94741935 | N4: 45.77145161 | O4: 46.75951613 | P4: 43.79169355 | Q4: 57.77266129 | R4: 37.3358871
B5: February | C5: 46.20232143 | D5: 51.25839286 | E5: 50.02383929 | F5: 49.81866071 | G5: 50.88285714 | H5: 57.60741071 | I5: 59.02544643 | J5: 58.02553571 | K5: 54.23026786 | L5: 55.09330357 | M5: 47.20008929 | N5: 47.37232143 | O5: 50.65946429 | P5: 47.27214286 | Q5: 59.6225 | R5: 37.413125
B6: March | C6: 48.07177419 | D6: 51.59725806 | E6: 54.29774194 | F6: 57.50653226 | G6: 51.86193548 | H6: 58.21491935 | I6: 59.73669355 | J6: 55.13774194 | K6: 58.01653226 | L6: 57.3608871 | M6: 49.40846774 | N6: 56.80346774 | O6: 55.30516129 | P6: 51.61830645 | Q6: 67.06443548 | R6: 36.49733871
B7: April | C7: 49.65075 | D7: 55.7605 | E7: 57.0085 | F7: 56.2375 | G7: 55.40525 | H7: 60.39375 | I7: 62.8715 | J7: 59.9885 | K7: 63.468 | L7: 57.3725 | M7: 56.852 | N7: 61.3335 | O7: 62.4085 | P7: 61.8175 | Q7: 74.00875 | R7: 47.3365
B8: May | C8: 50.68225806 | D8: 61.0325 | E8: 59.4166129 | F8: 61.75032258 | G8: 57.10395161 | H8: 62.55475806 | I8: 62.96895161 | J8: 65.76935484 | K8: 66.63209677 | L8: 66.7658871 | M8: 68.11927419 | N8: 64.80935484 | O8: 71.03629032 | P8: 70.27032258 | Q8: 81.67080645 | R8: 52.26016129
B9: June | C9: 54.15125 | D9: 64.8735 | E9: 61.26175 | F9: 64.97 | G9: 58.849 | H9: 64.73625 | I9: 67.07575 | J9: 67.362 | K9: 68.18225 | L9: 69.63375 | M9: 78.0965 | N9: 73.38375 | O9: 78.2945 | P9: 77.337 | Q9: 89.243 | R9: 63.96425
B10: July | C10: 56.44032258 | D10: 62.85016129 | E10: 61.21274194 | F10: 65.25983871 | G10: 61.85241935 | H10: 67.7566129 | I10: 68.97741935 | J10: 73.80935484 | K10: 73.05548387 | L10: 75.01370968 | M10: 83.1466129 | N10: 74.75483871 | O10: 83.51895161 | P10: 82.25701613 | Q10: 94.27951613 | R10: 69.08677419
B11: August | C11: 56.17008065 | D11: 65.46669355 | E11: 62.5741129 | F11: 67.70677419 | G11: 61.17040323 | H11: 68.0825 | I11: 71.84145161 | J11: 74.38298387 | K11: 74.31548387 | L11: 75.96935484 | M11: 78.78306452 | N11: 73.58774194 | O11: 80.84629032 | P11: 81.31975806 | Q11: 94.18056452 | R11: 68.4833871
B12: September | C12: 56.477 | D12: 65.05275 | E12: 63.1075 | F12: 64.727 | G12: 60.87375 | H12: 67.656 | I12: 70.9115 | J12: 73.92625 | K12: 78.37625 | L12: 73.4085 | M12: 76.1755 | N12: 69.95175 | O12: 75.303 | P12: 76.3635 | Q12: 85.628 | R12: 63.819
B13: October | C13: 52.39177419 | D13: 56.68806452 | E13: 58.41040323 | F13: 63.21451613 | G13: 58.2725 | H13: 64.65282258 | I13: 65.48822581 | J13: 64.11016129 | K13: 62.61524194 | L13: 62.84532258 | M13: 62.72943548 | N13: 60.47 | O13: 67.59790323 | P13: 61.63951613 | Q13: 73.34919355 | R13: 58.67774194
B14: November | C14: 50.75425 | D14: 50.58925 | E14: 55.3305 | F14: 54.039 | G14: 53.742 | H14: 61.2375 | I14: 62.5255 | J14: 59.2175 | K14: 59.73975 | L14: 59.07625 | M14: 52.9005 | N14: 52.55025 | O14: 52.3505 | P14: 49.61975 | Q14: 66.491 | R14: 46.04775
B15: December | C15: 47.79524194 | D15: 48.10419355 | E15: 50.07427419 | F15: 50.79717742 | G15: 51.92532258 | H15: 57.77677419 | I15: 57.58806452 | J15: 56.90822581 | K15: 54.74508065 | L15: 53.16306452 | M15: 47.34717742 | N15: 45.8783871 | O15: 45.61274194 | P15: 44.78387097 | Q15: 59.44612903 | R15: 40.72419355

Sheet Updated Zip Code List (hidden)
A1: Zip Code | B1: Building CZ | C1: Missing CZ
A2: 90001 | B2: 8
A3: 90002 | B3: 8
A4: 90003 | B4: 8
A5: 90004 | B5: 9
A6: 90005 | B6: 9
A7: 90006 | B7: 9
A8: 90007 | B8: 8
A9: 90008 | B9: 8
A10: 90009 | B10: 6 | C10: 6
A11: 90010 | B11: 9 | C11: 9
A12: 90011 | B12: 8
A13: 90012 | B13: 9
A14: 90013 | B14: 9
A15: 90014 | B15: 9
A16: 90015 | B16: 9
A17: 90016 | B17: 8
A18: 90017 | B18: 9
A19: 90018 | B19: 8
A20: 90019 | B20: 9
A21: 90020 | B21: 9
A22: 90021 | B22: 9
A23: 90022 | B23: 9
A24: 90023 | B24: 9
A25: 90024 | B25: 9
A26: 90025 | B26: 6
A27: 90026 | B27: 9
A28: 90027 | B28: 9
A29: 90028 | B29: 9
A30: 90029 | B30: 9
A31: 90030 | B31: 9 | C31: 9
A32: 90031 | B32: 9
A33: 90032 | B33: 9
A34: 90033 | B34: 9
A35: 90034 | B35: 8
A36: 90035 | B36: 9
A37: 90036 | B37: 9
A38: 90037 | B38: 8
A39: 90038 | B39: 9
A40: 90039 | B40: 9
A41: 90040 | B41: 8
A42: 90041 | B42: 9
A43: 90042 | B43: 9
A44: 90043 | B44: 8
A45: 90044 | B45: 8
A46: 90045 | B46: 6
A47: 90046 | B47: 9
A48: 90047 | B48: 8
A49: 90048 | B49: 9
A50: 90049 | B50: 6
A51: 90050 | B51: 9 | C51: 9
A52: 90051 | B52: 8 | C52: 8
A53: 90052 | B53: 8 | C53: 8
A54: 90053 | B54: 9 | C54: 9
A55: 90054 | B55: 9 | C55: 9
A56: 90055 | B56: 9 | C56: 9
A57: 90056 | B57: 8
A58: 90057 | B58: 9
A59: 90058 | B59: 8
A60: 90059 | B60: 8
A61: 90060 | B61: 9 | C61: 9
A62: 90061 | B62: 8
A63: 90062 | B63: 8
A64: 90063 | B64: 9
A65: 90064 | B65: 9
A66: 90065 | B66: 9
A67: 90066 | B67: 6
A68: 90067 | B68: 9
A69: 90068 | B69: 9
A70: 90069 | B70: 9
A71: 90070 | B71: 9 | C71: 9
A72: 90071 | B72: 9
A73: 90072 | B73: 9 | C73: 9
A74: 90073 | B74: 6
A75: 90074 | B75: 9 | C75: 9
A76: 90075 | B76: 9 | C76: 9
A77: 90076 | B77: 9 | C77: 9
A78: 90077 | B78: 9
A79: 90078 | B79: 9 | C79: 9
A80: 90079 | B80: 9 | C80: 9
A81: 90080 | B81: 6 | C81: 6
A82: 90081 | B82: 9 | C82: 9
A83: 90082 | B83: 8 | C83: 8
A84: 90083 | B84: 6 | C84: 6
A85: 90084 | B85: 9 | C85: 9
A86: 90086 | B86: 9 | C86: 9
A87: 90087 | B87: 9 | C87: 9
A88: 90088 | B88: 9 | C88: 9
A89: 90089 | B89: 8
A90: 90091 | B90: 8 | C90: 8
A91: 90093 | B91: 9 | C91: 9
A92: 90094 | B92: 6
A93: 90095 | B93: 9
A94: 90096 | B94: 8 | C94: 8
A95: 90097 | B95: 6 | C95: cannot locate
A96: 90099 | B96: 9 | C96: 9
A97: 90101 | B97: 8 | C97: 8
A98: 90102 | B98: 6 | C98: cannot locate
A99: 90103 | B99: 6 | C99: cannot locate
A100: 90174 | B100: 6 | C100: cannot locate
A101: 90185 | B101: 6 | C101: cannot locate
A102: 90201 | B102: 8
A103: 90202 | B103: 8 | C103: 8
A104: 90209 | B104: 9 | C104: 9
A105: 90210 | B105: 9
A106: 90211 | B106: 9
A107: 90212 | B107: 9
A108: 90213 | B108: 9 | C108: 9
A109: 90220 | B109: 8
A110: 90221 | B110: 8
A111: 90222 | B111: 8
A112: 90223 | B112: 8 | C112: 8
A113: 90224 | B113: 8 | C113: 8
A114: 90230 | B114: 8
A115: 90231 | B115: 8 | C115: 8
A116: 90232 | B116: 8
A117: 90233 | B117: 6 | C117: 6
A118: 90239 | B118: 8 | C118: 8
A119: 90240 | B119: 8
A120: 90241 | B120: 8
A121: 90242 | B121: 8
A122: 90245 | B122: 6
A123: 90247 | B123: 8
A124: 90248 | B124: 8
A125: 90249 | B125: 8
A126: 90250 | B126: 8
A127: 90251 | B127: 8 | C127: 8
A128: 90254 | B128: 6
A129: 90255 | B129: 8
A130: 90260 | B130: 8
A131: 90261 | B131: 6 | C131: 6
A132: 90262 | B132: 8
A133: 90263 | B133: 6
A134: 90264 | B134: 6 | C134: 6
A135: 90265 | B135: 6
A136: 90266 | B136: 6
A137: 90267 | B137: 6 | C137: 6
A138: 90270 | B138: 8
A139: 90272 | B139: 6
A140: 90274 | B140: 6
A141: 90275 | B141: 6
A142: 90277 | B142: 6
A143: 90278 | B143: 6
A144: 90280 | B144: 8
A145: 90290 | B145: 6
A146: 90291 | B146: 6
A147: 90292 | B147: 6
A148: 90293 | B148: 6
A149: 90294 | B149: 6 | C149: 6
A150: 90295 | B150: 6 | C150: 6
A151: 90296 | B151: 6 | C151: 6
A152: 90301 | B152: 8
A153: 90302 | B153: 8
A154: 90303 | B154: 8
A155: 90304 | B155: 8
A156: 90305 | B156: 8
A157: 90306 | B157: 8 | C157: 8
A158: 90307 | B158: 8 | C158: 8
A159: 90308 | B159: 8 | C159: 8
A160: 90309 | B160: 8 | C160: 8
A161: 90310 | B161: 8 | C161: 8
A162: 90311 | B162: 8 | C162: 8
A163: 90312 | B163: 8 | C163: 8
A164: 90313 | B164: 6 | C164: cannot locate
A165: 90397 | B165: 6 | C165: cannot locate
A166: 90398 | B166: 6 | C166: cannot locate
A167: 90401 | B167: 6
A168: 90402 | B168: 6
A169: 90403 | B169: 6
A170: 90404 | B170: 6
A171: 90405 | B171: 6
A172: 90406 | B172: 6 | C172: 6
A173: 90407 | B173: 6 | C173: 6
A174: 90408 | B174: 6 | C174: 6
A175: 90409 | B175: 6 | C175: 6
A176: 90410 | B176: 6 | C176: 6
A177: 90411 | B177: 6 | C177: 6
A178: 90501 | B178: 6
A179: 90502 | B179: 6
A180: 90503 | B180: 6
A181: 90504 | B181: 8
A182: 90505 | B182: 6
A183: 90506 | B183: 8
A184: 90507 | B184: 6 | C184: 6
A185: 90508 | B185: 6 | C185: 6
A186: 90509 | B186: 6 | C186: 6
A187: 90510 | B187: 6 | C187: 6
A188: 90601 | B188: 9
A189: 90602 | B189: 9
A190: 90603 | B190: 9
A191: 90604 | B191: 9
A192: 90605 | B192: 9
A193: 90606 | B193: 9
A194: 90607 | B194: 9 | C194: 9
A195: 90608 | B195: 9 | C195: 9
A196: 90609 | B196: 9 | C196: 9
A197: 90610 | B197: 9 | C197: 9
A198: 90612 | B198: 6 | C198: cannot locate
A199: 90620 | B199: 8
A200: 90621 | B200: 8
... 2477 more rows

Sheet iouzipcodes2015 (hidden)
A1: zip | B1: eiaid | D1: utility_name | E1: state | F1: service_type | G1: ownership | H1: comm_rate | I1: ind_rate | J1: res_rate
A2: 94080 | B2: 14328 | C2: PG&E | D2: Pacific Gas & Electric Co | E2: CA | F2: Bundled | G2: Investor Owned | H2: 0.186574573 | I2: 0.1453294246 | J2: 0.1803126538
A3: 95799 | B3: 14328 | C3: PG&E | D3: Pacific Gas & Electric Co | E3: CA | F3: Bundled | G3: Investor Owned | H3: 0.186574573 | I3: 0.1453294246 | J3: 0.1803126538
A4: 94541 | B4: 14328 | C4: PG&E | D4: Pacific Gas & Electric Co | E4: CA | F4: Bundled | G4: Investor Owned | H4: 0.186574573 | I4: 0.1453294246 | J4: 0.1803126538
A5: 94540 | B5: 14328 | C5: PG&E | D5: Pacific Gas & Electric Co | E5: CA | F5: Bundled | G5: Investor Owned | H5: 0.186574573 | I5: 0.1453294246 | J5: 0.1803126538
A6: 94543 | B6: 14328 | C6: PG&E | D6: Pacific Gas & Electric Co | E6: CA | F6: Bundled | G6: Investor Owned | H6: 0.186574573 | I6: 0.1453294246 | J6: 0.1803126538
A7: 94542 | B7: 14328 | C7: PG&E | D7: Pacific Gas & Electric Co | E7: CA | F7: Bundled | G7: Investor Owned | H7: 0.186574573 | I7: 0.1453294246 | J7: 0.1803126538
A8: 94545 | B8: 14328 | C8: PG&E | D8: Pacific Gas & Electric Co | E8: CA | F8: Bundled | G8: Investor Owned | H8: 0.186574573 | I8: 0.1453294246 | J8: 0.1803126538
A9: 94544 | B9: 14328 | C9: PG&E | D9: Pacific Gas & Electric Co | E9: CA | F9: Bundled | G9: Investor Owned | H9: 0.186574573 | I9: 0.1453294246 | J9: 0.1803126538
A10: 94547 | B10: 14328 | C10: PG&E | D10: Pacific Gas & Electric Co | E10: CA | F10: Bundled | G10: Investor Owned | H10: 0.186574573 | I10: 0.1453294246 | J10: 0.1803126538
A11: 94546 | B11: 14328 | C11: PG&E | D11: Pacific Gas & Electric Co | E11: CA | F11: Bundled | G11: Investor Owned | H11: 0.186574573 | I11: 0.1453294246 | J11: 0.1803126538
A12: 94549 | B12: 14328 | C12: PG&E | D12: Pacific Gas & Electric Co | E12: CA | F12: Bundled | G12: Investor Owned | H12: 0.186574573 | I12: 0.1453294246 | J12: 0.1803126538
A13: 94548 | B13: 14328 | C13: PG&E | D13: Pacific Gas & Electric Co | E13: CA | F13: Bundled | G13: Investor Owned | H13: 0.186574573 | I13: 0.1453294246 | J13: 0.1803126538
A14: 95968 | B14: 14328 | C14: PG&E | D14: Pacific Gas & Electric Co | E14: CA | F14: Bundled | G14: Investor Owned | H14: 0.186574573 | I14: 0.1453294246 | J14: 0.1803126538
A15: 95969 | B15: 14328 | C15: PG&E | D15: Pacific Gas & Electric Co | E15: CA | F15: Bundled | G15: Investor Owned | H15: 0.186574573 | I15: 0.1453294246 | J15: 0.1803126538
A16: 95960 | B16: 14328 | C16: PG&E | D16: Pacific Gas & Electric Co | E16: CA | F16: Bundled | G16: Investor Owned | H16: 0.186574573 | I16: 0.1453294246 | J16: 0.1803126538
A17: 95961 | B17: 14328 | C17: PG&E | D17: Pacific Gas & Electric Co | E17: CA | F17: Bundled | G17: Investor Owned | H17: 0.186574573 | I17: 0.1453294246 | J17: 0.1803126538
A18: 95962 | B18: 14328 | C18: PG&E | D18: Pacific Gas & Electric Co | E18: CA | F18: Bundled | G18: Investor Owned | H18: 0.186574573 | I18: 0.1453294246 | J18: 0.1803126538
A19: 95963 | B19: 14328 | C19: PG&E | D19: Pacific Gas & Electric Co | E19: CA | F19: Bundled | G19: Investor Owned | H19: 0.186574573 | I19: 0.1453294246 | J19: 0.1803126538
A20: 95965 | B20: 14328 | C20: PG&E | D20: Pacific Gas & Electric Co | E20: CA | F20: Bundled | G20: Investor Owned | H20: 0.186574573 | I20: 0.1453294246 | J20: 0.1803126538
A21: 95966 | B21: 14328 | C21: PG&E | D21: Pacific Gas & Electric Co | E21: CA | F21: Bundled | G21: Investor Owned | H21: 0.186574573 | I21: 0.1453294246 | J21: 0.1803126538
A22: 95967 | B22: 14328 | C22: PG&E | D22: Pacific Gas & Electric Co | E22: CA | F22: Bundled | G22: Investor Owned | H22: 0.186574573 | I22: 0.1453294246 | J22: 0.1803126538
A23: 95728 | B23: 14328 | C23: PG&E | D23: Pacific Gas & Electric Co | E23: CA | F23: Bundled | G23: Investor Owned | H23: 0.186574573 | I23: 0.1453294246 | J23: 0.1803126538
A24: 94912 | B24: 14328 | C24: PG&E | D24: Pacific Gas & Electric Co | E24: CA | F24: Bundled | G24: Investor Owned | H24: 0.186574573 | I24: 0.1453294246 | J24: 0.1803126538
A25: 94913 | B25: 14328 | C25: PG&E | D25: Pacific Gas & Electric Co | E25: CA | F25: Bundled | G25: Investor Owned | H25: 0.186574573 | I25: 0.1453294246 | J25: 0.1803126538
A26: 94915 | B26: 14328 | C26: PG&E | D26: Pacific Gas & Electric Co | E26: CA | F26: Bundled | G26: Investor Owned | H26: 0.186574573 | I26: 0.1453294246 | J26: 0.1803126538
A27: 94132 | B27: 14328 | C27: PG&E | D27: Pacific Gas & Electric Co | E27: CA | F27: Bundled | G27: Investor Owned | H27: 0.186574573 | I27: 0.1453294246 | J27: 0.1803126538
A28: 94133 | B28: 14328 | C28: PG&E | D28: Pacific Gas & Electric Co | E28: CA | F28: Bundled | G28: Investor Owned | H28: 0.186574573 | I28: 0.1453294246 | J28: 0.1803126538
A29: 94134 | B29: 14328 | C29: PG&E | D29: Pacific Gas & Electric Co | E29: CA | F29: Bundled | G29: Investor Owned | H29: 0.186574573 | I29: 0.1453294246 | J29: 0.1803126538
A30: 95663 | B30: 14328 | C30: PG&E | D30: Pacific Gas & Electric Co | E30: CA | F30: Bundled | G30: Investor Owned | H30: 0.186574573 | I30: 0.1453294246 | J30: 0.1803126538
A31: 95662 | B31: 14328 | C31: PG&E | D31: Pacific Gas & Electric Co | E31: CA | F31: Bundled | G31: Investor Owned | H31: 0.186574573 | I31: 0.1453294246 | J31: 0.1803126538
A32: 95661 | B32: 14328 | C32: PG&E | D32: Pacific Gas & Electric Co | E32: CA | F32: Bundled | G32: Investor Owned | H32: 0.186574573 | I32: 0.1453294246 | J32: 0.1803126538
A33: 95667 | B33: 14328 | C33: PG&E | D33: Pacific Gas & Electric Co | E33: CA | F33: Bundled | G33: Investor Owned | H33: 0.186574573 | I33: 0.1453294246 | J33: 0.1803126538
A34: 95666 | B34: 14328 | C34: PG&E | D34: Pacific Gas & Electric Co | E34: CA | F34: Bundled | G34: Investor Owned | H34: 0.186574573 | I34: 0.1453294246 | J34: 0.1803126538
A35: 95665 | B35: 14328 | C35: PG&E | D35: Pacific Gas & Electric Co | E35: CA | F35: Bundled | G35: Investor Owned | H35: 0.186574573 | I35: 0.1453294246 | J35: 0.1803126538
A36: 95664 | B36: 14328 | C36: PG&E | D36: Pacific Gas & Electric Co | E36: CA | F36: Bundled | G36: Investor Owned | H36: 0.186574573 | I36: 0.1453294246 | J36: 0.1803126538
A37: 95669 | B37: 14328 | C37: PG&E | D37: Pacific Gas & Electric Co | E37: CA | F37: Bundled | G37: Investor Owned | H37: 0.186574573 | I37: 0.1453294246 | J37: 0.1803126538
A38: 95668 | B38: 14328 | C38: PG&E | D38: Pacific Gas & Electric Co | E38: CA | F38: Bundled | G38: Investor Owned | H38: 0.186574573 | I38: 0.1453294246 | J38: 0.1803126538
A39: 93625 | B39: 14328 | C39: PG&E | D39: Pacific Gas & Electric Co | E39: CA | F39: Bundled | G39: Investor Owned | H39: 0.186574573 | I39: 0.1453294246 | J39: 0.1803126538
A40: 93624 | B40: 14328 | C40: PG&E | D40: Pacific Gas & Electric Co | E40: CA | F40: Bundled | G40: Investor Owned | H40: 0.186574573 | I40: 0.1453294246 | J40: 0.1803126538
A41: 93627 | B41: 14328 | C41: PG&E | D41: Pacific Gas & Electric Co | E41: CA | F41: Bundled | G41: Investor Owned | H41: 0.186574573 | I41: 0.1453294246 | J41: 0.1803126538
A42: 93626 | B42: 14328 | C42: PG&E | D42: Pacific Gas & Electric Co | E42: CA | F42: Bundled | G42: Investor Owned | H42: 0.186574573 | I42: 0.1453294246 | J42: 0.1803126538
A43: 93621 | B43: 14328 | C43: PG&E | D43: Pacific Gas & Electric Co | E43: CA | F43: Bundled | G43: Investor Owned | H43: 0.186574573 | I43: 0.1453294246 | J43: 0.1803126538
A44: 93620 | B44: 14328 | C44: PG&E | D44: Pacific Gas & Electric Co | E44: CA | F44: Bundled | G44: Investor Owned | H44: 0.186574573 | I44: 0.1453294246 | J44: 0.1803126538
A45: 93623 | B45: 14328 | C45: PG&E | D45: Pacific Gas & Electric Co | E45: CA | F45: Bundled | G45: Investor Owned | H45: 0.186574573 | I45: 0.1453294246 | J45: 0.1803126538
A46: 93622 | B46: 14328 | C46: PG&E | D46: Pacific Gas & Electric Co | E46: CA | F46: Bundled | G46: Investor Owned | H46: 0.186574573 | I46: 0.1453294246 | J46: 0.1803126538
A47: 95155 | B47: 14328 | C47: PG&E | D47: Pacific Gas & Electric Co | E47: CA | F47: Bundled | G47: Investor Owned | H47: 0.186574573 | I47: 0.1453294246 | J47: 0.1803126538
A48: 95154 | B48: 14328 | C48: PG&E | D48: Pacific Gas & Electric Co | E48: CA | F48: Bundled | G48: Investor Owned | H48: 0.186574573 | I48: 0.1453294246 | J48: 0.1803126538
A49: 93637 | B49: 14328 | C49: PG&E | D49: Pacific Gas & Electric Co | E49: CA | F49: Bundled | G49: Investor Owned | H49: 0.186574573 | I49: 0.1453294246 | J49: 0.1803126538
A50: 94074 | B50: 14328 | C50: PG&E | D50: Pacific Gas & Electric Co | E50: CA | F50: Bundled | G50: Investor Owned | H50: 0.186574573 | I50: 0.1453294246 | J50: 0.1803126538
A51: 94070 | B51: 14328 | C51: PG&E | D51: Pacific Gas & Electric Co | E51: CA | F51: Bundled | G51: Investor Owned | H51: 0.186574573 | I51: 0.1453294246 | J51: 0.1803126538
A52: 93475 | B52: 14328 | C52: PG&E | D52: Pacific Gas & Electric Co | E52: CA | F52: Bundled | G52: Investor Owned | H52: 0.186574573 | I52: 0.1453294246 | J52: 0.1803126538
A53: 95459 | B53: 14328 | C53: PG&E | D53: Pacific Gas & Electric Co | E53: CA | F53: Bundled | G53: Investor Owned | H53: 0.186574573 | I53: 0.1453294246 | J53: 0.1803126538
A54: 95450 | B54: 14328 | C54: PG&E | D54: Pacific Gas & Electric Co | E54: CA | F54: Bundled | G54: Investor Owned | H54: 0.186574573 | I54: 0.1453294246 | J54: 0.1803126538
A55: 95451 | B55: 14328 | C55: PG&E | D55: Pacific Gas & Electric Co | E55: CA | F55: Bundled | G55: Investor Owned | H55: 0.186574573 | I55: 0.1453294246 | J55: 0.1803126538
A56: 95452 | B56: 14328 | C56: PG&E | D56: Pacific Gas & Electric Co | E56: CA | F56: Bundled | G56: Investor Owned | H56: 0.186574573 | I56: 0.1453294246 | J56: 0.1803126538
A57: 95453 | B57: 14328 | C57: PG&E | D57: Pacific Gas & Electric Co | E57: CA | F57: Bundled | G57: Investor Owned | H57: 0.186574573 | I57: 0.1453294246 | J57: 0.1803126538
A58: 95454 | B58: 14328 | C58: PG&E | D58: Pacific Gas & Electric Co | E58: CA | F58: Bundled | G58: Investor Owned | H58: 0.186574573 | I58: 0.1453294246 | J58: 0.1803126538
A59: 95456 | B59: 14328 | C59: PG&E | D59: Pacific Gas & Electric Co | E59: CA | F59: Bundled | G59: Investor Owned | H59: 0.186574573 | I59: 0.1453294246 | J59: 0.1803126538
A60: 95457 | B60: 14328 | C60: PG&E | D60: Pacific Gas & Electric Co | E60: CA | F60: Bundled | G60: Investor Owned | H60: 0.186574573 | I60: 0.1453294246 | J60: 0.1803126538
A61: 93406 | B61: 14328 | C61: PG&E | D61: Pacific Gas & Electric Co | E61: CA | F61: Bundled | G61: Investor Owned | H61: 0.186574573 | I61: 0.1453294246 | J61: 0.1803126538
A62: 95338 | B62: 14328 | C62: PG&E | D62: Pacific Gas & Electric Co | E62: CA | F62: Bundled | G62: Investor Owned | H62: 0.186574573 | I62: 0.1453294246 | J62: 0.1803126538
A63: 95335 | B63: 14328 | C63: PG&E | D63: Pacific Gas & Electric Co | E63: CA | F63: Bundled | G63: Investor Owned | H63: 0.186574573 | I63: 0.1453294246 | J63: 0.1803126538
A64: 95337 | B64: 14328 | C64: PG&E | D64: Pacific Gas & Electric Co | E64: CA | F64: Bundled | G64: Investor Owned | H64: 0.186574573 | I64: 0.1453294246 | J64: 0.1803126538
A65: 95333 | B65: 14328 | C65: PG&E | D65: Pacific Gas & Electric Co | E65: CA | F65: Bundled | G65: Investor Owned | H65: 0.186574573 | I65: 0.1453294246 | J65: 0.1803126538
A66: 93274 | B66: 14328 | C66: PG&E | D66: Pacific Gas & Electric Co | E66: CA | F66: Bundled | G66: Investor Owned | H66: 0.186574573 | I66: 0.1453294246 | J66: 0.1803126538
A67: 93271 | B67: 14328 | C67: PG&E | D67: Pacific Gas & Electric Co | E67: CA | F67: Bundled | G67: Investor Owned | H67: 0.186574573 | I67: 0.1453294246 | J67: 0.1803126538
A68: 95631 | B68: 14328 | C68: PG&E | D68: Pacific Gas & Electric Co | E68: CA | F68: Bundled | G68: Investor Owned | H68: 0.186574573 | I68: 0.1453294246 | J68: 0.1803126538
A69: 95559 | B69: 14328 | C69: PG&E | D69: Pacific Gas & Electric Co | E69: CA | F69: Bundled | G69: Investor Owned | H69: 0.186574573 | I69: 0.1453294246 | J69: 0.1803126538
A70: 95558 | B70: 14328 | C70: PG&E | D70: Pacific Gas & Electric Co | E70: CA | F70: Bundled | G70: Investor Owned | H70: 0.186574573 | I70: 0.1453294246 | J70: 0.1803126538
A71: 95555 | B71: 14328 | C71: PG&E | D71: Pacific Gas & Electric Co | E71: CA | F71: Bundled | G71: Investor Owned | H71: 0.186574573 | I71: 0.1453294246 | J71: 0.1803126538
A72: 95554 | B72: 14328 | C72: PG&E | D72: Pacific Gas & Electric Co | E72: CA | F72: Bundled | G72: Investor Owned | H72: 0.186574573 | I72: 0.1453294246 | J72: 0.1803126538
A73: 95556 | B73: 14328 | C73: PG&E | D73: Pacific Gas & Electric Co | E73: CA | F73: Bundled | G73: Investor Owned | H73: 0.186574573 | I73: 0.1453294246 | J73: 0.1803126538
A74: 95551 | B74: 14328 | C74: PG&E | D74: Pacific Gas & Electric Co | E74: CA | F74: Bundled | G74: Investor Owned | H74: 0.186574573 | I74: 0.1453294246 | J74: 0.1803126538
A75: 95550 | B75: 14328 | C75: PG&E | D75: Pacific Gas & Electric Co | E75: CA | F75: Bundled | G75: Investor Owned | H75: 0.186574573 | I75: 0.1453294246 | J75: 0.1803126538
A76: 95553 | B76: 14328 | C76: PG&E | D76: Pacific Gas & Electric Co | E76: CA | F76: Bundled | G76: Investor Owned | H76: 0.186574573 | I76: 0.1453294246 | J76: 0.1803126538
A77: 95552 | B77: 14328 | C77: PG&E | D77: Pacific Gas & Electric Co | E77: CA | F77: Bundled | G77: Investor Owned | H77: 0.186574573 | I77: 0.1453294246 | J77: 0.1803126538
A78: 96011 | B78: 14328 | C78: PG&E | D78: Pacific Gas & Electric Co | E78: CA | F78: Bundled | G78: Investor Owned | H78: 0.186574573 | I78: 0.1453294246 | J78: 0.1803126538
A79: 96010 | B79: 14328 | C79: PG&E | D79: Pacific Gas & Electric Co | E79: CA | F79: Bundled | G79: Investor Owned | H79: 0.186574573 | I79: 0.1453294246 | J79: 0.1803126538
A80: 93675 | B80: 14328 | C80: PG&E | D80: Pacific Gas & Electric Co | E80: CA | F80: Bundled | G80: Investor Owned | H80: 0.186574573 | I80: 0.1453294246 | J80: 0.1803126538
A81: 95746 | B81: 14328 | C81: PG&E | D81: Pacific Gas & Electric Co | E81: CA | F81: Bundled | G81: Investor Owned | H81: 0.186574573 | I81: 0.1453294246 | J81: 0.1803126538
A82: 95747 | B82: 14328 | C82: PG&E | D82: Pacific Gas & Electric Co | E82: CA | F82: Bundled | G82: Investor Owned | H82: 0.186574573 | I82: 0.1453294246 | J82: 0.1803126538
A83: 95742 | B83: 14328 | C83: PG&E | D83: Pacific Gas & Electric Co | E83: CA | F83: Bundled | G83: Investor Owned | H83: 0.186574573 | I83: 0.1453294246 | J83: 0.1803126538
A84: 94596 | B84: 14328 | C84: PG&E | D84: Pacific Gas & Electric Co | E84: CA | F84: Bundled | G84: Investor Owned | H84: 0.186574573 | I84: 0.1453294246 | J84: 0.1803126538
A85: 94597 | B85: 14328 | C85: PG&E | D85: Pacific Gas & Electric Co | E85: CA | F85: Bundled | G85: Investor Owned | H85: 0.186574573 | I85: 0.1453294246 | J85: 0.1803126538
A86: 94595 | B86: 14328 | C86: PG&E | D86: Pacific Gas & Electric Co | E86: CA | F86: Bundled | G86: Investor Owned | H86: 0.186574573 | I86: 0.1453294246 | J86: 0.1803126538
A87: 94592 | B87: 14328 | C87: PG&E | D87: Pacific Gas & Electric Co | E87: CA | F87: Bundled | G87: Investor Owned | H87: 0.186574573 | I87: 0.1453294246 | J87: 0.1803126538
A88: 94591 | B88: 14328 | C88: PG&E | D88: Pacific Gas & Electric Co | E88: CA | F88: Bundled | G88: Investor Owned | H88: 0.186574573 | I88: 0.1453294246 | J88: 0.1803126538
A89: 94598 | B89: 14328 | C89: PG&E | D89: Pacific Gas & Electric Co | E89: CA | F89: Bundled | G89: Investor Owned | H89: 0.186574573 | I89: 0.1453294246 | J89: 0.1803126538
A90: 94599 | B90: 14328 | C90: PG&E | D90: Pacific Gas & Electric Co | E90: CA | F90: Bundled | G90: Investor Owned | H90: 0.186574573 | I90: 0.1453294246 | J90: 0.1803126538
A91: 93744 | B91: 14328 | C91: PG&E | D91: Pacific Gas & Electric Co | E91: CA | F91: Bundled | G91: Investor Owned | H91: 0.186574573 | I91: 0.1453294246 | J91: 0.1803126538
A92: 93745 | B92: 14328 | C92: PG&E | D92: Pacific Gas & Electric Co | E92: CA | F92: Bundled | G92: Investor Owned | H92: 0.186574573 | I92: 0.1453294246 | J92: 0.1803126538
A93: 93740 | B93: 14328 | C93: PG&E | D93: Pacific Gas & Electric Co | E93: CA | F93: Bundled | G93: Investor Owned | H93: 0.186574573 | I93: 0.1453294246 | J93: 0.1803126538
A94: 93741 | B94: 14328 | C94: PG&E | D94: Pacific Gas & Electric Co | E94: CA | F94: Bundled | G94: Investor Owned | H94: 0.186574573 | I94: 0.1453294246 | J94: 0.1803126538
A95: 93943 | B95: 14328 | C95: PG&E | D95: Pacific Gas & Electric Co | E95: CA | F95: Bundled | G95: Investor Owned | H95: 0.186574573 | I95: 0.1453294246 | J95: 0.1803126538
A96: 93944 | B96: 14328 | C96: PG&E | D96: Pacific Gas & Electric Co | E96: CA | F96: Bundled | G96: Investor Owned | H96: 0.186574573 | I96: 0.1453294246 | J96: 0.1803126538
A97: 94624 | B97: 14328 | C97: PG&E | D97: Pacific Gas & Electric Co | E97: CA | F97: Bundled | G97: Investor Owned | H97: 0.186574573 | I97: 0.1453294246 | J97: 0.1803126538
A98: 94620 | B98: 14328 | C98: PG&E | D98: Pacific Gas & Electric Co | E98: CA | F98: Bundled | G98: Investor Owned | H98: 0.186574573 | I98: 0.1453294246 | J98: 0.1803126538
A99: 94621 | B99: 14328 | C99: PG&E | D99: Pacific Gas & Electric Co | E99: CA | F99: Bundled | G99: Investor Owned | H99: 0.186574573 | I99: 0.1453294246 | J99: 0.1803126538
A100: 94622 | B100: 14328 | C100: PG&E | D100: Pacific Gas & Electric Co | E100: CA | F100: Bundled | G100: Investor Owned | H100: 0.186574573 | I100: 0.1453294246 | J100: 0.1803126538
A101: 94623 | B101: 14328 | C101: PG&E | D101: Pacific Gas & Electric Co | E101: CA | F101: Bundled | G101: Investor Owned | H101: 0.186574573 | I101: 0.1453294246 | J101: 0.1803126538
A102: 93536 | B102: 14328 | C102: PG&E | D102: Pacific Gas & Electric Co | E102: CA | F102: Bundled | G102: Investor Owned | H102: 0.186574573 | I102: 0.1453294246 | J102: 0.1803126538
A103: 94707 | B103: 14328 | C103: PG&E | D103: Pacific Gas & Electric Co | E103: CA | F103: Bundled | G103: Investor Owned | H103: 0.186574573 | I103: 0.1453294246 | J103: 0.1803126538
A104: 94706 | B104: 14328 | C104: PG&E | D104: Pacific Gas & Electric Co | E104: CA | F104: Bundled | G104: Investor Owned | H104: 0.186574573 | I104: 0.1453294246 | J104: 0.1803126538
A105: 94705 | B105: 14328 | C105: PG&E | D105: Pacific Gas & Electric Co | E105: CA | F105: Bundled | G105: Investor Owned | H105: 0.186574573 | I105: 0.1453294246 | J105: 0.1803126538
A106: 94704 | B106: 14328 | C106: PG&E | D106: Pacific Gas & Electric Co | E106: CA | F106: Bundled | G106: Investor Owned | H106: 0.186574573 | I106: 0.1453294246 | J106: 0.1803126538
A107: 94703 | B107: 14328 | C107: PG&E | D107: Pacific Gas & Electric Co | E107: CA | F107: Bundled | G107: Investor Owned | H107: 0.186574573 | I107: 0.1453294246 | J107: 0.1803126538
A108: 94702 | B108: 14328 | C108: PG&E | D108: Pacific Gas & Electric Co | E108: CA | F108: Bundled | G108: Investor Owned | H108: 0.186574573 | I108: 0.1453294246 | J108: 0.1803126538
A109: 94701 | B109: 14328 | C109: PG&E | D109: Pacific Gas & Electric Co | E109: CA | F109: Bundled | G109: Investor Owned | H109: 0.186574573 | I109: 0.1453294246 | J109: 0.1803126538
A110: 95076 | B110: 14328 | C110: PG&E | D110: Pacific Gas & Electric Co | E110: CA | F110: Bundled | G110: Investor Owned | H110: 0.186574573 | I110: 0.1453294246 | J110: 0.1803126538
A111: 95077 | B111: 14328 | C111: PG&E | D111: Pacific Gas & Electric Co | E111: CA | F111: Bundled | G111: Investor Owned | H111: 0.186574573 | I111: 0.1453294246 | J111: 0.1803126538
A112: 95075 | B112: 14328 | C112: PG&E | D112: Pacific Gas & Electric Co | E112: CA | F112: Bundled | G112: Investor Owned | H112: 0.186574573 | I112: 0.1453294246 | J112: 0.1803126538
A113: 95073 | B113: 14328 | C113: PG&E | D113: Pacific Gas & Electric Co | E113: CA | F113: Bundled | G113: Investor Owned | H113: 0.186574573 | I113: 0.1453294246 | J113: 0.1803126538
A114: 95070 | B114: 14328 | C114: PG&E | D114: Pacific Gas & Electric Co | E114: CA | F114: Bundled | G114: Investor Owned | H114: 0.186574573 | I114: 0.1453294246 | J114: 0.1803126538
A115: 95071 | B115: 14328 | C115: PG&E | D115: Pacific Gas & Electric Co | E115: CA | F115: Bundled | G115: Investor Owned | H115: 0.186574573 | I115: 0.1453294246 | J115: 0.1803126538
A116: 96035 | B116: 14328 | C116: PG&E | D116: Pacific Gas & Electric Co | E116: CA | F116: Bundled | G116: Investor Owned | H116: 0.186574573 | I116: 0.1453294246 | J116: 0.1803126538
A117: 96033 | B117: 14328 | C117: PG&E | D117: Pacific Gas & Electric Co | E117: CA | F117: Bundled | G117: Investor Owned | H117: 0.186574573 | I117: 0.1453294246 | J117: 0.1803126538
A118: 96031 | B118: 14328 | C118: PG&E | D118: Pacific Gas & Electric Co | E118: CA | F118: Bundled | G118: Investor Owned | H118: 0.186574573 | I118: 0.1453294246 | J118: 0.1803126538
A119: 96039 | B119: 14328 | C119: PG&E | D119: Pacific Gas & Electric Co | E119: CA | F119: Bundled | G119: Investor Owned | H119: 0.186574573 | I119: 0.1453294246 | J119: 0.1803126538
A120: 94518 | B120: 14328 | C120: PG&E | D120: Pacific Gas & Electric Co | E120: CA | F120: Bundled | G120: Investor Owned | H120: 0.186574573 | I120: 0.1453294246 | J120: 0.1803126538
A121: 94519 | B121: 14328 | C121: PG&E | D121: Pacific Gas & Electric Co | E121: CA | F121: Bundled | G121: Investor Owned | H121: 0.186574573 | I121: 0.1453294246 | J121: 0.1803126538
A122: 94517 | B122: 14328 | C122: PG&E | D122: Pacific Gas & Electric Co | E122: CA | F122: Bundled | G122: Investor Owned | H122: 0.186574573 | I122: 0.1453294246 | J122: 0.1803126538
A123: 94514 | B123: 14328 | C123: PG&E | D123: Pacific Gas & Electric Co | E123: CA | F123: Bundled | G123: Investor Owned | H123: 0.186574573 | I123: 0.1453294246 | J123: 0.1803126538
A124: 94513 | B124: 14328 | C124: PG&E | D124: Pacific Gas & Electric Co | E124: CA | F124: Bundled | G124: Investor Owned | H124: 0.186574573 | I124: 0.1453294246 | J124: 0.1803126538
A125: 94511 | B125: 14328 | C125: PG&E | D125: Pacific Gas & Electric Co | E125: CA | F125: Bundled | G125: Investor Owned | H125: 0.186574573 | I125: 0.1453294246 | J125: 0.1803126538
A126: 93517 | B126: 14328 | C126: PG&E | D126: Pacific Gas & Electric Co | E126: CA | F126: Bundled | G126: Investor Owned | H126: 0.186574573 | I126: 0.1453294246 | J126: 0.1803126538
A127: 95951 | B127: 14328 | C127: PG&E | D127: Pacific Gas & Electric Co | E127: CA | F127: Bundled | G127: Investor Owned | H127: 0.186574573 | I127: 0.1453294246 | J127: 0.1803126538
A128: 95950 | B128: 14328 | C128: PG&E | D128: Pacific Gas & Electric Co | E128: CA | F128: Bundled | G128: Investor Owned | H128: 0.186574573 | I128: 0.1453294246 | J128: 0.1803126538
A129: 95953 | B129: 14328 | C129: PG&E | D129: Pacific Gas & Electric Co | E129: CA | F129: Bundled | G129: Investor Owned | H129: 0.186574573 | I129: 0.1453294246 | J129: 0.1803126538
A130: 95955 | B130: 14328 | C130: PG&E | D130: Pacific Gas & Electric Co | E130: CA | F130: Bundled | G130: Investor Owned | H130: 0.186574573 | I130: 0.1453294246 | J130: 0.1803126538
A131: 95954 | B131: 14328 | C131: PG&E | D131: Pacific Gas & Electric Co | E131: CA | F131: Bundled | G131: Investor Owned | H131: 0.186574573 | I131: 0.1453294246 | J131: 0.1803126538
A132: 95957 | B132: 14328 | C132: PG&E | D132: Pacific Gas & Electric Co | E132: CA | F132: Bundled | G132: Investor Owned | H132: 0.186574573 | I132: 0.1453294246 | J132: 0.1803126538
A133: 95956 | B133: 14328 | C133: PG&E | D133: Pacific Gas & Electric Co | E133: CA | F133: Bundled | G133: Investor Owned | H133: 0.186574573 | I133: 0.1453294246 | J133: 0.1803126538
A134: 95959 | B134: 14328 | C134: PG&E | D134: Pacific Gas & Electric Co | E134: CA | F134: Bundled | G134: Investor Owned | H134: 0.186574573 | I134: 0.1453294246 | J134: 0.1803126538
A135: 95958 | B135: 14328 | C135: PG&E | D135: Pacific Gas & Electric Co | E135: CA | F135: Bundled | G135: Investor Owned | H135: 0.186574573 | I135: 0.1453294246 | J135: 0.1803126538
A136: 94581 | B136: 14328 | C136: PG&E | D136: Pacific Gas & Electric Co | E136: CA | F136: Bundled | G136: Investor Owned | H136: 0.186574573 | I136: 0.1453294246 | J136: 0.1803126538
A137: 95170 | B137: 14328 | C137: PG&E | D137: Pacific Gas & Electric Co | E137: CA | F137: Bundled | G137: Investor Owned | H137: 0.186574573 | I137: 0.1453294246 | J137: 0.1803126538
A138: 94963 | B138: 14328 | C138: PG&E | D138: Pacific Gas & Electric Co | E138: CA | F138: Bundled | G138: Investor Owned | H138: 0.186574573 | I138: 0.1453294246 | J138: 0.1803126538
A139: 94960 | B139: 14328 | C139: PG&E | D139: Pacific Gas & Electric Co | E139: CA | F139: Bundled | G139: Investor Owned | H139: 0.186574573 | I139: 0.1453294246 | J139: 0.1803126538
A140: 94965 | B140: 14328 | C140: PG&E | D140: Pacific Gas & Electric Co | E140: CA | F140: Bundled | G140: Investor Owned | H140: 0.186574573 | I140: 0.1453294246 | J140: 0.1803126538
A141: 93729 | B141: 14328 | C141: PG&E | D141: Pacific Gas & Electric Co | E141: CA | F141: Bundled | G141: Investor Owned | H141: 0.186574573 | I141: 0.1453294246 | J141: 0.1803126538
A142: 93720 | B142: 14328 | C142: PG&E | D142: Pacific Gas & Electric Co | E142: CA | F142: Bundled | G142: Investor Owned | H142: 0.186574573 | I142: 0.1453294246 | J142: 0.1803126538
A143: 93721 | B143: 14328 | C143: PG&E | D143: Pacific Gas & Electric Co | E143: CA | F143: Bundled | G143: Investor Owned | H143: 0.186574573 | I143: 0.1453294246 | J143: 0.1803126538
A144: 95240 | B144: 14328 | C144: PG&E | D144: Pacific Gas & Electric Co | E144: CA | F144: Bundled | G144: Investor Owned | H144: 0.186574573 | I144: 0.1453294246 | J144: 0.1803126538
A145: 95242 | B145: 14328 | C145: PG&E | D145: Pacific Gas & Electric Co | E145: CA | F145: Bundled | G145: Investor Owned | H145: 0.186574573 | I145: 0.1453294246 | J145: 0.1803126538
A146: 95245 | B146: 14328 | C146: PG&E | D146: Pacific Gas & Electric Co | E146: CA | F146: Bundled | G146: Investor Owned | H146: 0.186574573 | I146: 0.1453294246 | J146: 0.1803126538
A147: 95247 | B147: 14328 | C147: PG&E | D147: Pacific Gas & Electric Co | E147: CA | F147: Bundled | G147: Investor Owned | H147: 0.186574573 | I147: 0.1453294246 | J147: 0.1803126538
A148: 95246 | B148: 14328 | C148: PG&E | D148: Pacific Gas & Electric Co | E148: CA | F148: Bundled | G148: Investor Owned | H148: 0.186574573 | I148: 0.1453294246 | J148: 0.1803126538
A149: 95249 | B149: 14328 | C149: PG&E | D149: Pacific Gas & Electric Co | E149: CA | F149: Bundled | G149: Investor Owned | H149: 0.186574573 | I149: 0.1453294246 | J149: 0.1803126538
A150: 95248 | B150: 14328 | C150: PG&E | D150: Pacific Gas & Electric Co | E150: CA | F150: Bundled | G150: Investor Owned | H150: 0.186574573 | I150: 0.1453294246 | J150: 0.1803126538
A151: 94914 | B151: 14328 | C151: PG&E | D151: Pacific Gas & Electric Co | E151: CA | F151: Bundled | G151: Investor Owned | H151: 0.186574573 | I151: 0.1453294246 | J151: 0.1803126538
A152: 93445 | B152: 14328 | C152: PG&E | D152: Pacific Gas & Electric Co | E152: CA | F152: Bundled | G152: Investor Owned | H152: 0.186574573 | I152: 0.1453294246 | J152: 0.1803126538
A153: 93444 | B153: 14328 | C153: PG&E | D153: Pacific Gas & Electric Co | E153: CA | F153: Bundled | G153: Investor Owned | H153: 0.186574573 | I153: 0.1453294246 | J153: 0.1803126538
A154: 93447 | B154: 14328 | C154: PG&E | D154: Pacific Gas & Electric Co | E154: CA | F154: Bundled | G154: Investor Owned | H154: 0.186574573 | I154: 0.1453294246 | J154: 0.1803126538
A155: 93446 | B155: 14328 | C155: PG&E | D155: Pacific Gas & Electric Co | E155: CA | F155: Bundled | G155: Investor Owned | H155: 0.186574573 | I155: 0.1453294246 | J155: 0.1803126538
A156: 93441 | B156: 14328 | C156: PG&E | D156: Pacific Gas & Electric Co | E156: CA | F156: Bundled | G156: Investor Owned | H156: 0.186574573 | I156: 0.1453294246 | J156: 0.1803126538
A157: 93440 | B157: 14328 | C157: PG&E | D157: Pacific Gas & Electric Co | E157: CA | F157: Bundled | G157: Investor Owned | H157: 0.186574573 | I157: 0.1453294246 | J157: 0.1803126538
A158: 93443 | B158: 14328 | C158: PG&E | D158: Pacific Gas & Electric Co | E158: CA | F158: Bundled | G158: Investor Owned | H158: 0.186574573 | I158: 0.1453294246 | J158: 0.1803126538
A159: 93442 | B159: 14328 | C159: PG&E | D159: Pacific Gas & Electric Co | E159: CA | F159: Bundled | G159: Investor Owned | H159: 0.186574573 | I159: 0.1453294246 | J159: 0.1803126538
A160: 93449 | B160: 14328 | C160: PG&E | D160: Pacific Gas & Electric Co | E160: CA | F160: Bundled | G160: Investor Owned | H160: 0.186574573 | I160: 0.1453294246 | J160: 0.1803126538
A161: 93448 | B161: 14328 | C161: PG&E | D161: Pacific Gas & Electric Co | E161: CA | F161: Bundled | G161: Investor Owned | H161: 0.186574573 | I161: 0.1453294246 | J161: 0.1803126538
A162: 93606 | B162: 14328 | C162: PG&E | D162: Pacific Gas & Electric Co | E162: CA | F162: Bundled | G162: Investor Owned | H162: 0.186574573 | I162: 0.1453294246 | J162: 0.1803126538
A163: 95461 | B163: 14328 | C163: PG&E | D163: Pacific Gas & Electric Co | E163: CA | F163: Bundled | G163: Investor Owned | H163: 0.186574573 | I163: 0.1453294246 | J163: 0.1803126538
A164: 95460 | B164: 14328 | C164: PG&E | D164: Pacific Gas & Electric Co | E164: CA | F164: Bundled | G164: Investor Owned | H164: 0.186574573 | I164: 0.1453294246 | J164: 0.1803126538
A165: 95463 | B165: 14328 | C165: PG&E | D165: Pacific Gas & Electric Co | E165: CA | F165: Bundled | G165: Investor Owned | H165: 0.186574573 | I165: 0.1453294246 | J165: 0.1803126538
A166: 95462 | B166: 14328 | C166: PG&E | D166: Pacific Gas & Electric Co | E166: CA | F166: Bundled | G166: Investor Owned | H166: 0.186574573 | I166: 0.1453294246 | J166: 0.1803126538
A167: 95465 | B167: 14328 | C167: PG&E | D167: Pacific Gas & Electric Co | E167: CA | F167: Bundled | G167: Investor Owned | H167: 0.186574573 | I167: 0.1453294246 | J167: 0.1803126538
A168: 95467 | B168: 14328 | C168: PG&E | D168: Pacific Gas & Electric Co | E168: CA | F168: Bundled | G168: Investor Owned | H168: 0.186574573 | I168: 0.1453294246 | J168: 0.1803126538
A169: 95466 | B169: 14328 | C169: PG&E | D169: Pacific Gas & Electric Co | E169: CA | F169: Bundled | G169: Investor Owned | H169: 0.186574573 | I169: 0.1453294246 | J169: 0.1803126538
A170: 95468 | B170: 14328 | C170: PG&E | D170: Pacific Gas & Electric Co | E170: CA | F170: Bundled | G170: Investor Owned | H170: 0.186574573 | I170: 0.1453294246 | J170: 0.1803126538
A171: 93286 | B171: 14328 | C171: PG&E | D171: Pacific Gas & Electric Co | E171: CA | F171: Bundled | G171: Investor Owned | H171: 0.186574573 | I171: 0.1453294246 | J171: 0.1803126538
A172: 93282 | B172: 14328 | C172: PG&E | D172: Pacific Gas & Electric Co | E172: CA | F172: Bundled | G172: Investor Owned | H172: 0.186574573 | I172: 0.1453294246 | J172: 0.1803126538
A173: 93280 | B173: 14328 | C173: PG&E | D173: Pacific Gas & Electric Co | E173: CA | F173: Bundled | G173: Investor Owned | H173: 0.186574573 | I173: 0.1453294246 | J173: 0.1803126538
A174: 95431 | B174: 14328 | C174: PG&E | D174: Pacific Gas & Electric Co | E174: CA | F174: Bundled | G174: Investor Owned | H174: 0.186574573 | I174: 0.1453294246 | J174: 0.1803126538
A175: 95587 | B175: 14328 | C175: PG&E | D175: Pacific Gas & Electric Co | E175: CA | F175: Bundled | G175: Investor Owned | H175: 0.186574573 | I175: 0.1453294246 | J175: 0.1803126538
A176: 95585 | B176: 14328 | C176: PG&E | D176: Pacific Gas & Electric Co | E176: CA | F176: Bundled | G176: Investor Owned | H176: 0.186574573 | I176: 0.1453294246 | J176: 0.1803126538
A177: 95630 | B177: 14328 | C177: PG&E | D177: Pacific Gas & Electric Co | E177: CA | F177: Bundled | G177: Investor Owned | H177: 0.186574573 | I177: 0.1453294246 | J177: 0.1803126538
A178: 95632 | B178: 14328 | C178: PG&E | D178: Pacific Gas & Electric Co | E178: CA | F178: Bundled | G178: Investor Owned | H178: 0.186574573 | I178: 0.1453294246 | J178: 0.1803126538
A179: 95635 | B179: 14328 | C179: PG&E | D179: Pacific Gas & Electric Co | E179: CA | F179: Bundled | G179: Investor Owned | H179: 0.186574573 | I179: 0.1453294246 | J179: 0.1803126538
A180: 95636 | B180: 14328 | C180: PG&E | D180: Pacific Gas & Electric Co | E180: CA | F180: Bundled | G180: Investor Owned | H180: 0.186574573 | I180: 0.1453294246 | J180: 0.1803126538
A181: 95637 | B181: 14328 | C181: PG&E | D181: Pacific Gas & Electric Co | E181: CA | F181: Bundled | G181: Investor Owned | H181: 0.186574573 | I181: 0.1453294246 | J181: 0.1803126538
A182: 95638 | B182: 14328 | C182: PG&E | D182: Pacific Gas & Electric Co | E182: CA | F182: Bundled | G182: Investor Owned | H182: 0.186574573 | I182: 0.1453294246 | J182: 0.1803126538
A183: 95639 | B183: 14328 | C183: PG&E | D183: Pacific Gas & Electric Co | E183: CA | F183: Bundled | G183: Investor Owned | H183: 0.186574573 | I183: 0.1453294246 | J183: 0.1803126538
A184: 93673 | B184: 14328 | C184: PG&E | D184: Pacific Gas & Electric Co | E184: CA | F184: Bundled | G184: Investor Owned | H184: 0.186574573 | I184: 0.1453294246 | J184: 0.1803126538
A185: 94028 | B185: 14328 | C185: PG&E | D185: Pacific Gas & Electric Co | E185: CA | F185: Bundled | G185: Investor Owned | H185: 0.186574573 | I185: 0.1453294246 | J185: 0.1803126538
A186: 94022 | B186: 14328 | C186: PG&E | D186: Pacific Gas & Electric Co | E186: CA | F186: Bundled | G186: Investor Owned | H186: 0.186574573 | I186: 0.1453294246 | J186: 0.1803126538
A187: 94023 | B187: 14328 | C187: PG&E | D187: Pacific Gas & Electric Co | E187: CA | F187: Bundled | G187: Investor Owned | H187: 0.186574573 | I187: 0.1453294246 | J187: 0.1803126538
A188: 94020 | B188: 14328 | C188: PG&E | D188: Pacific Gas & Electric Co | E188: CA | F188: Bundled | G188: Investor Owned | H188: 0.186574573 | I188: 0.1453294246 | J188: 0.1803126538
A189: 94021 | B189: 14328 | C189: PG&E | D189: Pacific Gas & Electric Co | E189: CA | F189: Bundled | G189: Investor Owned | H189: 0.186574573 | I189: 0.1453294246 | J189: 0.1803126538
A190: 94026 | B190: 14328 | C190: PG&E | D190: Pacific Gas & Electric Co | E190: CA | F190: Bundled | G190: Investor Owned | H190: 0.186574573 | I190: 0.1453294246 | J190: 0.1803126538
A191: 94027 | B191: 14328 | C191: PG&E | D191: Pacific Gas & Electric Co | E191: CA | F191: Bundled | G191: Investor Owned | H191: 0.186574573 | I191: 0.1453294246 | J191: 0.1803126538
A192: 94024 | B192: 14328 | C192: PG&E | D192: Pacific Gas & Electric Co | E192: CA | F192: Bundled | G192: Investor Owned | H192: 0.186574573 | I192: 0.1453294246 | J192: 0.1803126538
A193: 94025 | B193: 14328 | C193: PG&E | D193: Pacific Gas & Electric Co | E193: CA | F193: Bundled | G193: Investor Owned | H193: 0.186574573 | I193: 0.1453294246 | J193: 0.1803126538
A194: 95776 | B194: 14328 | C194: PG&E | D194: Pacific Gas & Electric Co | E194: CA | F194: Bundled | G194: Investor Owned | H194: 0.186574573 | I194: 0.1453294246 | J194: 0.1803126538
A195: 95363 | B195: 14328 | C195: PG&E | D195: Pacific Gas & Electric Co | E195: CA | F195: Bundled | G195: Investor Owned | H195: 0.186574573 | I195: 0.1453294246 | J195: 0.1803126538
A196: 95360 | B196: 14328 | C196: PG&E | D196: Pacific Gas & Electric Co | E196: CA | F196: Bundled | G196: Investor Owned | H196: 0.186574573 | I196: 0.1453294246 | J196: 0.1803126538
A197: 95361 | B197: 14328 | C197: PG&E | D197: Pacific Gas & Electric Co | E197: CA | F197: Bundled | G197: Investor Owned | H197: 0.186574573 | I197: 0.1453294246 | J197: 0.1803126538
A198: 95366 | B198: 14328 | C198: PG&E | D198: Pacific Gas & Electric Co | E198: CA | F198: Bundled | G198: Investor Owned | H198: 0.186574573 | I198: 0.1453294246 | J198: 0.1803126538
A199: 95367 | B199: 14328 | C199: PG&E | D199: Pacific Gas & Electric Co | E199: CA | F199: Bundled | G199: Investor Owned | H199: 0.186574573 | I199: 0.1453294246 | J199: 0.1803126538
A200: 95364 | B200: 14328 | C200: PG&E | D200: Pacific Gas & Electric Co | E200: CA | F200: Bundled | G200: Investor Owned | H200: 0.186574573 | I200: 0.1453294246 | J200: 0.1803126538
... 4186 more rows
